Cogmind - Beta 17 @@@ ROGUE MODE // 2026.07.23 @ 17:16:07 Player: Infomantis Result: Establishing 0b11! Performance ------------- Evolutions (9) 4500 Regions Visited (27) 5400 Robots Destroyed (321) 1605 Value Destroyed (19256) 19256 Prototype IDs (401) 8020 Alien Tech Used (11) 2200 Bonus (69813) 69813 TOTAL SCORE: 110794 Bonus ------- High Alert Combat Kills 1953 Follower Combat Kills 3353 Prayed to X0-1V1 5000 Major X0-1V1 Interference 7450 Installed LC Capacitor 1000 Network Hubs Disabled 400 Registered with UFD 300 Met Optimus in HQ 500 Met Data Miner 300 Used Data Conduit 3000 Met R17 at Cetus 500 Found Hidden Lab 3000 Decrypted A0 Command 3000 Hacked Protovariant 500 Met R17 at Research 2000 Scanned by Researcher 500 Pursued by Intercept 2000 Recovered Sigix Corpse 2000 Destroyed MAIN.C Shell 5000 Destroyed MAIN.C 10000 Met Architect 300 Destroyed Architect 15000 Win 3000 Friendly Fire -243 Cogmind --------- Core Integrity 1658/2050 Matter 236/300 Energy 1365/1380 System Corruption 0% Temperature Cool (8) Movement Walking (98) +NEM 1 Location 0b11 Command Parts ------- > --- POWER (3) -------- Hybrid Antimatter Reactor Zero-point Reactor Zero-point Reactor > --- PROPULSION (7) --- High-density Centrium Leg Experimental Biometal Leg Experimental Biometal Leg Experimental Biometal Leg Myomer Exoskeleton > --- UTILITY (10) ----- Experimental Power Amplifier Coolant Network High-capacity Storage Unit Experimental Targeting Computer SHELL Armor AEGIS Remote Shield X0-1V1's Piety Tracker > --- WEAPON (6) ------- Long-range Gatling Laser Heavy Quantum Rifle Modified Sigix Sheargun Hypervelocity Linear Accelerator Hypervelocity Linear Accelerator Graviton Cannon > --- INVENTORY (22) --- Zero-point Reactor High-density Centrium Leg Experimental Energy Well (600) Experimental Matter Compressor (500) Deep Structural Scanner Long-range Sensor Array Experimental Focal Shield Experimental EM Shield Experimental System Purifier Integrity Redistributor Personal Teleporter v0.10 (Charged) Null Cannon Improved Potential Cannon L-Cannon (7) Ragnarok Missile Launcher Guided Remote Datajack Sigix Corpse Peak State ------------ > --- POWER ------------ Hybrid Antimatter Reactor Improved Quantum Reactor Zero-point Reactor > --- PROPULSION ------- Improved Thunder Leg Enhanced Biometal Leg High-density Centrium Leg Experimental Biometal Leg Myomer Exoskeleton > --- UTILITY ---------- Coolant Network High-capacity Storage Unit Experimental Energy Well Experimental Targeting Computer SHELL Armor AEGIS Remote Shield Architect God Chip D X0-1V1's Piety Tracker > --- WEAPON ----------- Modified Sigix Sheargun L-Cannon > --- INVENTORY -------- Zero-point Reactor Experimental Biometal Heavy Treads High-density Centrium Leg Experimental Power Amplifier Experimental Matter Compressor Deep Structural Scanner Long-range Sensor Array Experimental Powered Armor Experimental EM Shield Experimental System Purifier Integrity Redistributor Integrity Redistributor Personal Teleporter v0.10 Heavy Quantum Rifle Compact HERF Cannon Null Cannon Improved Potential Cannon Graviton Cannon Hellfire Missile Launcher Guided Remote Datajack [Rating: 292] Favorites ----------- Power Hybrid Antimatter Reactor Engine Hybrid Deuterium Engine Power Core Reinforced Fission Core Reactor Hybrid Antimatter Reactor Propulsion Enhanced Biometal Leg Treads Light Treads Leg Enhanced Biometal Leg Wheel Armored Wheel Hover Unit Improved Antigrav System Flight Unit Improved Surge Thruster Utility Self-contained Transmogrifier Device Self-contained Transmogrifier Storage Large Storage Unit Processor Experimental Targeting Computer Hackware Deep Network Scanner Protection Medium Regenerative Plating Artifact LC Capacitor Weapon Antimatter Cannon Energy Gun Heavy Quantum Rifle Energy Cannon Nova Cannon Ballistic Gun Railgun Ballistic Cannon Antimatter Cannon Launcher Proton Missile Launcher Special Weapon Guided Remote Datajack Impact Weapon Great Maul Slashing Weapon Vibroblade Piercing Weapon Spear Special Melee Weapon Datajack Build | -11 -10 -10 -8 -8 -6 -6 -6 -6 -5 -5 -5 -5 -5 -5 -4 -4 -4 -4 -4 -3 -3 -3 -2 -2 -1 -1 -1 ------- Run | Yrd Mat Sub Rec Scr Fac Low Low Dat Pro Fac Ext Cet Arc Hub Fac Was Fac Arm Lab Res Qua Sec Res Tes Acc Com Ac0 Slots Evolved 18 | . . . . . 8 . . . . 2 . . . . 2 . . . . 2 . . 2 . 2 . . Power 1 | . . . . . . . . . . . . . . . . . . . . . . . 1 . . . . Propulsion 5 | . . . . . 2 . . . . 2 . . . . 1 . . . . . . . . . . . . Utility 8 | . . . . . 4 . . . . . . . . . 1 . . . . 2 . . . . 1 . . Weapon 4 | . . . . . 2 . . . . . . . . . . . . . . . . . 1 . 1 . . Parts Attached 313 | 7 8 25 1 9 20 10 2 13 7 8 11 6 1 33 10 10 8 20 19 6 7 13 12 4 2 19 22 Power 40 | 1 1 4 . 2 3 . . 1 1 1 1 1 . 6 . 2 . 3 2 . 3 2 . . . 3 3 Engine 9 | 1 1 4 . 1 . . . . 1 . . 1 . . . . . . . . . . . . . . . Core 8 | . . . . 1 2 . . . . 1 1 . . 2 . . . 1 . . . . . . . . . Reactor 23 | . . . . . 1 . . 1 . . . . . 4 . 2 . 2 2 . 3 2 . . . 3 3 Propulsion 70 | 2 1 5 . 2 5 1 1 2 1 3 5 . . 8 2 3 1 2 1 4 2 5 3 2 . 4 5 Treads 12 | 2 1 2 . 1 . . . 1 . . . . . . 2 1 . . . . 2 . . . . . . Leg 49 | . . . . . 2 1 1 1 1 3 5 . . 8 . 1 1 2 1 4 . 5 3 2 . 4 4 Wheel 8 | . . 3 . 1 3 . . . . . . . . . . 1 . . . . . . . . . . . Hover . | . . . . . . . . . . . . . . . . . . . . . . . . . . . . Flight 1 | . . . . . . . . . . . . . . . . . . . . . . . . . . . 1 Utility 114 | 2 3 8 1 2 8 6 . 5 5 3 4 . 1 11 5 4 4 6 8 2 2 5 2 1 2 7 7 Device 64 | 1 2 4 1 . 4 2 . 2 2 2 3 . 1 7 2 4 2 4 3 1 2 4 1 . 1 4 5 Storage 12 | 1 1 2 . 1 1 1 . 1 . . . . . . . . . . 1 1 . . . 1 . 1 . Processor 10 | . . . . . 2 3 . . 1 1 . . . . 1 . . . . . . 1 . . 1 . . Hackware 8 | . . . . . 1 . . . 1 . . . . . 1 . 1 . 1 . . . 1 . . . 2 Protection 19 | . . 2 . 1 . . . 2 1 . 1 . . 4 1 . 1 2 2 . . . . . . 2 . Artifact 1 | . . . . . . . . . . . . . . . . . . . 1 . . . . . . . . Weapon 89 | 2 3 8 . 3 4 3 1 5 . 1 1 5 . 8 3 1 3 9 8 . . 1 7 1 . 5 7 Energy Gun 18 | 1 . 4 . . 2 . . 1 . . . . . 1 . . . 1 5 . . . . . . 1 2 Energy Cannon 22 | . . . . . . . . 2 . . . 1 . 2 2 . 1 2 2 . . 1 6 1 . 1 1 Ballistic Gun 18 | 1 2 . . . 1 3 . . . 1 1 1 . 2 1 1 2 1 . . . . . . . 1 . Ballistic Cannon 13 | . . 2 . 2 . . . . . . . 1 . 1 . . . . . . . . 1 . . 2 4 Launcher 11 | . . 2 . . 1 . 1 2 . . . 1 . 1 . . . 3 . . . . . . . . . Special Weapon 6 | . 1 . . . . . . . . . . 1 . 1 . . . 2 1 . . . . . . . . Impact Weapon . | . . . . . . . . . . . . . . . . . . . . . . . . . . . . Slashing Weapon . | . . . . . . . . . . . . . . . . . . . . . . . . . . . . Piercing Weapon . | . . . . . . . . . . . . . . . . . . . . . . . . . . . . Special Melee Weapon 1 | . . . . 1 . . . . . . . . . . . . . . . . . . . . . . . Unidentified Prototypes 27 | . 1 1 . . 1 . . . . . . . . . 2 . . . 7 . 1 3 . 3 . 2 6 Corrupted Parts 18 | . . . . . . 1 . 5 . . . . . 3 . . . 2 3 . . 4 . . . . . System Corruption 125 | . . . . . . 2 . 30 . . . . . 30 . . . 13 19 . . 31 . . . . . Parts Lost 72 | . 1 7 1 2 10 5 . 5 2 1 . 4 . 16 4 3 1 4 . . . 4 . . . . 2 Power 9 | . . 3 . . 1 . . 2 . . . . . 2 . 1 . . . . . . . . . . . Propulsion 18 | . . 1 . 1 3 2 . . 1 . . 1 . 4 2 1 . 1 . . . 1 . . . . . Utility 26 | . 1 2 1 1 3 1 . 2 1 1 . . . 5 1 1 1 3 . . . 1 . . . . 1 Weapon 19 | . . 1 . . 3 2 . 1 . . . 3 . 5 1 . . . . . . 2 . . . . 1 Highest Loss Streak 5 | . 1 2 1 2 4 4 . 5 2 1 . 3 . 5 3 2 1 2 . . . 1 . . . . 1 To Critical Strikes 3 | . . . . . . . . . . . . 2 . . . 1 . . . . . . . . . . . Average Backups 16 | 3 10 12 11 12 12 18 21 21 21 21 22 20 19 22 21 21 22 23 21 21 18 18 17 17 17 18 17 Power . | . . . 1 . . . . . . 1 1 . 1 1 1 1 1 1 . . 1 1 . 1 1 1 1 Propulsion 1 | . 1 2 2 2 . . 1 2 3 2 1 2 1 1 1 2 4 3 2 2 . . . 1 1 . 1 Utility 6 | . 2 3 3 2 4 9 10 10 9 9 9 9 10 12 11 9 10 9 8 8 7 7 6 5 6 7 7 Weapon 4 | 1 4 5 3 3 3 4 6 4 4 5 5 4 3 4 5 5 4 5 6 6 5 4 3 3 3 3 4 Tool/Special . | . . . . . . . . . . . . . . . . . . . . . . . . . . . . Unused Backups 96 | . . 17 1 3 . . 4 4 2 1 4 5 2 9 2 2 . 6 2 2 3 2 7 3 . 6 9 Power 5 | . . . . . . . . . . . . 1 . 2 . . . . . . 1 . . . . . 1 Propulsion 19 | . . 1 1 1 . . 1 . 2 . 2 1 2 . . 1 . 1 2 . . . 1 . . 1 2 Utility 41 | . . 9 . 1 . . 2 3 . 1 1 2 . 5 2 1 . . . 1 1 . 5 . . 4 3 Weapon 28 | . . 7 . . . . 1 1 . . 1 1 . 2 . . . 4 . 1 1 2 1 3 . 1 2 Tool/Special 3 | . . . . 1 . . . . . . . . . . . . . 1 . . . . . . . . 1 Average Slot Usage (%) 88 | . 97 87 97 97 82 87 93 77 78 96 94 91 91 94 88 78 82 81 83 79 79 80 88 86 79 79 78 Engine 5 | . 14 13 23 8 . . 5 3 . 1 . 1 . . . . . . . . . . . . . . . Core 4 | . . . 4 9 6 12 6 3 . 5 11 4 10 8 2 . 2 5 1 . . . . . . . . Reactor 6 | . . . . 8 4 . . 2 6 3 . 4 . 2 7 9 7 4 9 13 11 7 11 12 11 11 11 Treads 3 | . 27 13 12 3 2 . . . . . . . . . 2 1 . . . . 3 . . . . . . Leg 12 | . . . . 10 7 . . . 6 12 20 20 21 24 19 15 18 20 20 20 22 27 25 21 15 16 19 Wheel 1 | . . 7 1 . 4 11 9 6 . . . . . . . . . . . . . . . . . . . Device 18 | . 13 7 22 18 25 17 22 22 28 20 29 21 24 23 18 22 21 24 23 17 17 18 17 16 15 20 15 Storage 8 | . 14 14 14 13 6 6 12 7 6 5 5 5 5 7 9 5 7 8 8 4 4 4 4 4 3 3 4 Processor 3 | . . . 1 8 2 14 3 . . 4 2 5 5 3 1 6 . . . . . 2 4 4 6 3 3 Protection 4 | . . 10 1 . 4 5 7 12 6 5 1 5 . 4 4 3 7 2 2 3 4 5 8 8 7 5 3 Energy Gun 4 | . 11 12 5 2 6 . 2 . 1 . 3 . . 1 2 . . 5 3 . 2 2 . . 2 3 6 Energy Cannon 3 | . . . . 3 . 4 11 4 . . . 6 11 7 7 4 7 6 1 4 4 5 10 14 11 9 . Ballistic Gun 2 | . 14 1 2 . 4 7 . 2 11 5 2 3 5 2 4 4 4 1 7 4 1 . . . . . . Ballistic Cannon 3 | . . 5 . 4 . . . . 5 11 9 6 5 4 . . . . . . . . . . . . 9 Peak Build Rating 292 | 7 22 27 39 49 86 84 92 97 106 124 122 129 129 135 141 149 149 152 184 201 227 224 226 248 260 275 292 Average Rating 114 | 5 9 16 32 43 70 76 87 79 99 120 117 120 123 120 135 140 143 139 144 195 210 205 213 232 257 261 277 On Entrance 126 | . 7 20 27 39 27 50 84 77 97 102 121 121 117 129 134 130 148 145 147 184 201 227 201 222 245 257 273 Avg Prop Armor Cover (%) 7 | . . 4 . 33 9 3 3 4 2 7 2 . . . 8 13 . . . . 8 7 . . . . 5 Naked Turns . | . . . . . . . . . . . . . . . . . . . . . . . . . . . . Heaviest Build 242 | 12 32 54 52 62 75 130 133 137 150 156 155 151 149 162 164 160 178 242 242 159 142 149 164 174 180 214 222 Greatest Support 210 | 40 40 40 30 30 35 44 28 28 50 106 112 109 96 140 145 135 118 130 125 166 166 178 196 210 208 208 208 Greatest Overweight (x) 6 | . . 4 4 3 6 4 4 4 4 2 2 1 1 1 1 6 1 2 2 1 1 1 1 . . 1 1 Average Overweight (x) 1 | . . 2 1 1 2 2 4 3 2 1 1 1 1 . 1 1 1 1 1 . . . . . . . . Largest Inventory Capacity 35 | 8 15 35 15 15 17 27 27 27 27 27 27 27 27 27 27 27 27 27 27 27 22 22 22 22 22 22 22 Average Capacity 20 | 7 11 15 15 14 16 24 27 27 27 27 27 27 27 27 27 27 27 27 27 25 22 22 22 22 22 22 22 Most Carried 27 | 6 15 15 15 15 17 27 27 27 27 27 27 27 27 27 27 27 27 27 27 27 22 22 22 22 22 22 22 Average Carried 19 | 3 10 14 14 14 15 22 26 25 25 26 26 24 21 25 26 26 26 26 26 24 21 21 21 21 21 21 21 Final Capacity 27 | 8 15 15 15 15 17 27 27 27 27 27 27 27 27 27 27 27 27 27 27 27 22 22 22 22 22 22 22 Final Carried 27 | 6 14 15 15 14 17 27 27 27 27 26 27 16 27 27 27 27 27 27 27 25 22 21 22 22 22 22 21 Scrap Suit Usage (%) 1 | . . . . . . . . . . . . . . . 1 . . . . . . . . . . . . Transmogrified Parts 205 | . . 7 24 60 6 8 9 5 18 7 10 5 2 9 8 13 7 7 . . . . . . . . . Integrity Recovered 3104 | . . 44 299 231 75 184 106 33 448 75 191 139 90 162 347 308 175 197 . . . . . . . . . Class Distribution -------------------- 39% | Mutant 21% | Scavenger-Tank 12% | Hauler-Tank 8% | Hauler-Gunner 6% | Scavenger-Gunner 4% | Scavenger-Executioner 3% | Hauler-Skirmisher Dominant Class ---------------- Mutant | -10/Materials Mutant | -10/Subcaves Mutant | -8/Recycling Mutant | -8/Scraptown Scavenger-Tank | -6/Factory Hauler-Gunner | -6/Lower Caves Hauler-Gunner | -6/Lower Caves Hauler-Mutant | -6/Data Miner Hauler-Tank | -5/Proximity Caves Hauler-Skirmisher | -5/Factory Hauler-Gunner | -5/Extension Hauler-Tank | -5/Cetus Hauler-Gunner | -5/Archives Hauler-Gunner | -5/Hub_04(d) Hauler-Tank | -4/Factory Hauler-Tank | -4/Waste Hauler-Tank | -4/Factory Hauler-Tank | -4/Armory Scavenger-Gunner | -4/Lab Scavenger-Gunner | -3/Research Scavenger-Tank | -3/Quarantine Scavenger-Tank | -3/Section 7 Scavenger-Tank | -2/Research Scavenger-Tank | -2/Testing Scavenger-Tank | -1/Access Scavenger-Tank | -1/Command Scavenger-Executioner | -1/Access_0 Resources | -11 -10 -10 -8 -8 -6 -6 -6 -6 -5 -5 -5 -5 -5 -5 -4 -4 -4 -4 -4 -3 -3 -3 -2 -2 -1 -1 -1 ----------- Run | Yrd Mat Sub Rec Scr Fac Low Low Dat Pro Fac Ext Cet Arc Hub Fac Was Fac Arm Lab Res Qua Sec Res Tes Acc Com Ac0 Matter Collected 16902 | 294 156 1119 271 94 382 260 403 405 450 256 715 443 263 1181 561 1282 240 1205 349 436 323 674 392 500 37 1270 2941 Remotely . | . . . . . . . . . . . . . . . . . . . . . . . . . . . . Salvage Created 16335 | 231 348 944 222 . 1119 131 123 440 245 311 752 367 339 1596 611 1540 496 811 . . 660 1759 839 1143 107 442 759 Parts 612 | 23 22 78 12 . 40 5 9 16 11 8 12 16 12 53 31 31 25 28 . . 20 68 28 27 3 12 22 Haulers Intercepted 6 | . 2 . . . . . . . . . . . . 2 . . . . . . 1 . 1 . . . . Recyclers Shooed 12 | . 1 . . . 2 . . . . 2 3 . . . . . 1 . . . . 1 1 . . 1 . Parts Field Recycled . | . . . . . . . . . . . . . . . . . . . . . . . . . . . . Retrieved Matter . | . . . . . . . . . . . . . . . . . . . . . . . . . . . . Parts Self-Destructed 64 | . . 38 . . . 4 8 . 14 . . . . . . . . . . . . . . . . . . Prevented . | . . . . . . . . . . . . . . . . . . . . . . . . . . . . Parts Restored . | . . . . . . . . . . . . . . . . . . . . . . . . . . . . Kills | -11 -10 -10 -8 -8 -6 -6 -6 -6 -5 -5 -5 -5 -5 -5 -4 -4 -4 -4 -4 -3 -3 -3 -2 -2 -1 -1 -1 ------- Run | Yrd Mat Sub Rec Scr Fac Low Low Dat Pro Fac Ext Cet Arc Hub Fac Was Fac Arm Lab Res Qua Sec Res Tes Acc Com Ac0 Combat Hostiles Destroyed 262 | . 10 43 2 . 12 8 2 4 8 8 12 6 4 23 13 6 7 12 . . 5 18 8 20 1 9 21 Guns 71 | . 10 16 2 . 11 2 1 . 3 1 4 1 2 7 . 4 1 2 . . . . . . . . 4 Cannons 115 | . . 6 . . . 3 1 . 5 7 8 1 2 9 6 2 4 3 . . 3 13 4 14 . 8 16 AOE 39 | . . 20 . . . 3 . . . . . 2 . 2 4 . . 3 . . . . . 4 . 1 . Classes Destroyed 26 | 3 4 3 . . 3 . 1 . 1 . 3 . . 2 1 1 . . . . 2 . . 2 . . . Worker 16 | 1 . . . . 4 . . . . . . . . 5 2 . 2 . . . . . . 1 1 . . Builder 5 | . . . . . 2 . . . . . . . . 1 . . 1 . . . . 1 . . . . . Tunneler 8 | 8 . . . . . . . . . . . . . . . . . . . . . . . . . . . Hauler 6 | . 2 . . . . . . . . . . . . 2 . . . . . . 1 . 1 . . . . Recycler 14 | 1 . . 2 . 4 . . . . . 2 . . . . . . . . . . 3 . . . 2 . Mechanic 1 | . . . . . . . . . . . 1 . . . . . . . . . . . . . . . . Operator 2 | . . . . . . . . . . . . . . . 1 . . . . . . . . . . 1 . Drone 3 | . . . . . . . . . 2 . . . . . . . . . . . . . . . . 1 . Turret 2 | . . 2 . . . . . . . . . . . . . . . . . . . . . . . . . Watcher 4 | . . . . . . . . . . . 1 2 . . . . . . . . . . . 1 . . . Swarmer 45 | . 6 21 . . 4 5 . . 2 . . . . . 5 . . . . . 2 . . . . . . Grunt 58 | . 2 6 . . 6 1 . . 3 4 5 . . 8 . . 4 4 . . 1 3 2 9 . . . Brawler 3 | . . . . . 1 . . . . . . . . 2 . . . . . . . . . . . . . Duelist 1 | . . . . . . . . . . . . . . 1 . . . . . . . . . . . . . Protector 2 | . . . . . . . . . . . . . . 1 . . . . . . . . . . . 1 . Researcher 2 | . . . . . . . . . . . . . . . . . . . . . 1 1 . . . . . Sentry 28 | . . 1 2 . . 1 . . 1 2 5 . 4 4 1 . 1 . . . . 3 1 . 1 1 . Specialist 4 | . . . . . . . . . . . . . . . . . . . . . . . . 4 . . . Hunter 15 | . . . . . . . 2 . . . . . . . 2 . . 1 . . . 2 2 4 . 2 . Programmer 25 | . . . . . 1 1 . . . 2 . . . 2 2 . 2 3 . . . 6 2 2 . 2 . Q-Series 1 | . . . . . . . . . . . . . . . . . . . . . . . . 1 . . . Behemoth 6 | . . . . . . . . . . . 1 . . . 1 . . 1 . . . 1 1 . . 1 . Compactor 6 | . . . . . . . . . . . . . . . . 6 . . . . . . . . . . . Armor Guard 1 | . . . . . . . . . . . . . . . . . . 1 . . . . . . . . . Cetus Guard 6 | . . . . . . . . . . . . 6 . . . . . . . . . . . . . . . S7 Guard 1 | . . . . . . . . . . . . . . . . . . . . . . 1 . . . . . Enhanced Grunt 18 | . . . . . . . . 4 . . . . . . . . . . . . . . . . . . 14 Enhanced Hunter 2 | . . . . . . . . . . . . . . . . . . . . . . . . . . . 2 Enhanced Programmer 5 | . . . . . . . . . . . . . . . . . . . . . . . . . . . 5 Lightning 5 | . . . . . . . . . . . . . . 5 . . . . . . . . . . . . . Tracker 4 | . . . . . . . . . . . . . . . 1 . . 1 . . 1 1 . . . . . Combat Programmer 4 | . . . . . . . . . . . . . . . 1 . . 1 . . . 1 . . . 1 . Fortress 1 | . . . . . . . . . . . . . . . . . . . . . 1 . . . . . . Artisan 1 | . . 1 . . . . . . . . . . . . . . . . . . . . . . . . . Subdweller 17 | . 2 15 . . . . . . . . . . . . . . . . . . . . . . . . . Savage 1 | . . . . . . . . . . . 1 . . . . . . . . . . . . . . . . Best Kill Streak 13 | 4 5 8 3 . 8 5 1 4 2 5 5 3 4 13 11 1 5 4 . . 5 7 3 4 1 2 3 Combat Bots Only 10 | . 5 8 1 . 4 5 1 4 2 5 4 3 4 10 8 1 2 4 . . 3 4 3 4 1 2 3 Max Kills in Single Turn 7 | 1 2 3 1 . 3 2 1 1 1 1 2 2 1 3 7 1 1 3 . . 1 2 1 2 1 1 2 Gunslinging 1 | . 1 . . . . . . . . . . . . . . . . . . . . . . . . . . Exploded 4 | . . 3 . . . 1 . . . . . 1 . 1 4 . . 3 . . . . . 2 . 1 . Melee . | . . . . . . . . . . . . . . . . . . . . . . . . . . . . Uniques/NPCs Destroyed 6 | . . . . . . . . . . . . . . . . . . . 1 . . . . . . . 5 A5 (-4/Lab) A8 (-1/Access_0) A6 (-1/Access_0) A2 (-1/Access_0) A4 (-1/Access_0) A3 (-1/Access_0) Combat | -11 -10 -10 -8 -8 -6 -6 -6 -6 -5 -5 -5 -5 -5 -5 -4 -4 -4 -4 -4 -3 -3 -3 -2 -2 -1 -1 -1 -------- Run | Yrd Mat Sub Rec Scr Fac Low Low Dat Pro Fac Ext Cet Arc Hub Fac Was Fac Arm Lab Res Qua Sec Res Tes Acc Com Ac0 Hostile Shots Fired 2387 | . 40 198 12 49 91 88 15 22 37 35 63 42 2 220 84 9 22 147 37 2 47 295 108 146 17 47 512 Missed 677 | . 15 53 3 10 27 26 3 9 12 8 15 14 1 45 18 . 2 20 10 2 13 99 43 52 6 10 161 Hits 1710 | . 25 145 9 39 64 62 12 13 25 27 48 28 1 175 66 9 20 127 27 . 34 196 65 94 11 37 351 Melee 34 | . . . . 3 . . . . . . . . . 8 . 9 . . . . . . . . . 7 7 Projectile 1676 | . 25 145 9 36 64 62 12 13 25 27 48 28 1 167 66 . 20 127 27 . 34 196 65 94 11 30 344 AOE 16 | . 1 1 . . . . . . . . . . . 1 2 . 1 2 . . . 1 . 7 . . . Critical Strikes 142 | . 1 1 1 5 3 . . . . 1 2 4 . 21 2 5 1 10 1 . 7 9 3 8 . 3 54 Part Disruptions 6 | . . . . . . . . . . . . . . 1 . . . . . . . . . 2 . . 3 Damage Taken 28334 | . 385 2175 116 678 1429 947 192 536 490 398 985 904 23 4443 1451 295 701 2444 199 24 494 1949 844 784 121 358 4969 Core 3108 | . 68 373 12 113 153 225 71 40 63 . 165 51 . 569 68 . 24 280 43 . 5 124 40 75 11 21 514 Absorbed by Shields 8051 | . . . 16 . . . . . . . . . . . . . . . . . 154 1178 618 820 126 373 4766 Redirected to Shielding 19 | . . . . . . . . . . . . . . . . . 19 . . . . . . . . . . Ignored by Resistances 7720 | . . . . . . 21 . 65 . . 51 . . 1447 45 94 . 674 532 . 163 973 98 1449 . 33 2075 Regen/Repaired (Parts) 5920 | . . . . . . . . . . . . . . . . 21 33 . 94 . 106 205 1301 97 28 97 3938 Core Remaining (%) 59 | 100 . . . 16 . . . . 33 . . . . 17 . . . . 62 . . 86 . 82 . . 80 Volleys Fired 1162 | 24 38 170 14 3 53 18 6 11 16 18 34 17 8 95 34 49 23 44 52 3 18 124 29 64 17 43 137 Largest 5 | 2 2 2 1 1 3 2 3 3 3 3 3 4 4 4 3 2 3 3 3 1 1 2 4 3 3 3 5 Hottest 980 | 70 100 116 75 35 153 170 250 147 149 113 147 262 262 280 205 120 266 278 191 40 40 200 900 426 323 900 980 Shots Fired 2312 | 48 73 210 17 3 101 28 15 21 46 54 102 38 23 235 71 89 47 99 101 3 19 131 60 115 25 72 466 Gun 1017 | 48 72 137 16 3 99 8 3 4 33 18 38 5 8 103 24 49 18 42 98 . 1 4 4 . 4 4 174 Cannon 1217 | . . 58 . . . 12 12 3 13 36 64 25 15 129 46 40 29 51 3 3 18 126 54 114 20 68 278 Launcher 51 | . . 15 1 . 2 8 . 14 . . . 6 . 1 1 . . 3 . . . . . . . . . Special 27 | . 1 . . . . . . . . . . 2 . 2 . . . 3 . . . 1 2 1 1 . 14 Kinetic 944 | 24 39 89 10 3 48 12 . 3 42 54 75 19 16 120 20 49 18 14 80 . 1 . . . . . 208 Thermal 1142 | 24 34 121 6 . 26 12 15 1 4 . 27 11 7 112 49 40 16 61 13 3 18 120 53 114 20 68 167 Explosive 11 | . . . . . 2 4 . . . . . . . 1 1 . . 3 . . . . . . . . . Electromagnetic 114 | . . . 1 . 25 . . 17 . . . 6 . . 1 . 13 18 8 . . 10 5 . 4 4 2 Slashing 75 | . . . . . . . . . . . . . . . . . . . . . . . . . . . 75 Robot Hit Streak 56 | 9 11 24 8 . 11 6 12 15 8 12 27 56 15 22 12 24 17 11 5 . 3 14 11 24 9 19 16 Robot Miss Streak 11 | 2 2 4 2 . 3 3 1 1 3 1 3 . 1 5 3 1 3 4 5 1 1 2 2 2 1 3 11 Penetration Max 6 | . . . . . 1 . . . . 1 1 . . 1 . . 1 1 . . . . 6 . . 5 2 Secondary Targets 8 | . 3 1 . . 1 . . . 1 . . . . 2 . . . . . . . . . . . . . Max Gunslinging Chain 1 | . 1 1 . . 1 . . . 1 . . . . 1 . . . . . . . . . . . . . Shots Hit Robots 1408 | 30 44 110 12 2 72 20 11 14 29 36 79 29 18 144 36 83 32 56 45 . 10 79 26 72 10 31 278 Core Hits 635 | 13 20 66 3 1 50 12 4 10 18 14 30 21 9 88 27 21 14 26 13 . 6 31 10 27 4 13 84 Critical Kills 30 | . 1 . . . . . . . . . . 1 2 . 3 . . 2 . . 3 4 2 1 1 . 10 Critical Parts Destroyed 20 | . . 1 . . 1 . . . . 1 . . . 1 . 1 . 1 . . . . . . . . 14 Critical Strikes 110 | 3 5 4 . . 5 . . . 3 1 11 3 3 6 3 2 2 3 . . 3 5 2 1 1 . 44 Burn 20 | 3 4 3 . . 3 . . . 2 . 2 . . 3 . . . . . . . . . . . . . Meltdown 15 | . . . . . . . . . . . . . . . 3 . . 1 . . 3 4 2 1 1 . . Destroy 45 | . 1 1 . . 1 . . . . 1 . 1 2 1 . 2 . 2 . . . . . . . . 33 Blast 22 | . . . . . . . . . 1 . 9 2 1 2 . . . . . . . . . . . . 7 Corrupt 3 | . . . . . 1 . . . . . . . . . . . 2 . . . . . . . . . . Sever 4 | . . . . . . . . . . . . . . . . . . . . . . . . . . . 4 Sunder 1 | . . . . . . . . . . . . . . . . . . . . . . 1 . . . . . Melee Attacks 8 | . . 3 . 2 . . . . . . . . . . . . . . . . . . 3 . . . . Impact 3 | . . 3 . . . . . . . . . . . . . . . . . . . . . . . . . Slashing 3 | . . . . . . . . . . . . . . . . . . . . . . . 3 . . . . Piercing . | . . . . . . . . . . . . . . . . . . . . . . . . . . . . Sneak Attacks 2 | . . . . 2 . . . . . . . . . . . . . . . . . . . . . . . Combat Hostiles . | . . . . . . . . . . . . . . . . . . . . . . . . . . . . Follow-up Attacks . | . . . . . . . . . . . . . . . . . . . . . . . . . . . . Damage Inflicted 61419 | 331 496 3835 231 20 2443 1021 313 416 875 1487 3144 1870 658 6716 1821 3282 1553 2533 807 . 627 5524 1062 6263 590 3395 10106 Guns 16416 | 331 496 1443 228 . 1754 106 73 6 524 317 880 86 168 2285 446 1987 521 762 807 . 26 72 51 . 65 . 2982 Cannons 35450 | . . 657 . . . 339 240 54 351 1111 2171 862 480 2935 845 1295 1032 941 . . 596 5162 968 4729 525 3033 7124 Explosions 9177 | . . 1735 . . 689 576 . 356 . . . 922 . 1487 502 . . 830 . . . 185 . 1534 . 361 . Melee . | . . . . . . . . . . . . . . . . . . . . . . . . . . . . Ramming 376 | . . . 3 20 . . . . . 59 93 . 10 9 28 . . . . . 5 105 43 . . 1 . Kinetic 21051 | 106 243 2688 144 . 947 438 . 6 825 1428 2518 520 399 2204 336 1987 521 254 693 . 93 . . . . . 4701 Thermal 32425 | 225 253 1147 84 . 416 339 313 . 50 . 533 865 249 3339 955 1295 423 1262 104 . 529 4987 968 6263 525 3394 3907 Explosive 2216 | . . . . . 640 244 . . . . . . . . 502 . . 830 . . . . . . . . . Electromagnetic 3697 | . . . . . 440 . . 410 . . . 485 . 1164 . . 609 187 10 . . 243 51 . 65 . 33 Impact . | . . . . . . . . . . . . . . . . . . . . . . . . . . . . Slashing 1465 | . . . . . . . . . . . . . . . . . . . . . . . . . . . 1465 Piercing . | . . . . . . . . . . . . . . . . . . . . . . . . . . . . Entropic 84 | . . . . . . . . . . . . . . . . . . . . . . 84 . . . . . Phasic 105 | . . . . . . . . . . . . . . . . . . . . . . 105 . . . . . Highest Corruption 59 | . . 14 7 1 1 3 3 33 33 . . . . 59 2 2 6 24 44 . 3 41 . 5 . 1 11 Average Corruption 11 | . . 6 7 1 1 2 3 9 33 . . . . 28 1 2 5 13 37 . 2 6 . 4 . 1 7 Corruption Purged . | . . . . . . . . . . . . . . . . . . . . . . . . . . . . Corruption Blocked . | . . . . . . . . . . . . . . . . . . . . . . . . . . . . Effects 299 | . . 19 35 . . 4 11 9 13 . . . . 35 1 . 5 42 51 . 3 33 . 16 . 1 21 Message Errors 73 | . . 6 10 . . . 2 . 7 . . . . 12 . . 1 12 9 . 1 7 . 3 . . 3 Matter Fused 65 | . . 7 7 . . 1 1 2 3 . . . . 3 . . . 10 16 . 2 4 . 5 . . 4 Heat Flow Errors 28 | . . 2 5 . . . 2 2 . . . . . 1 . . 2 3 4 . . 2 . 2 . 1 2 Energy Discharges 27 | . . 2 6 . . 1 2 . 2 . . . . 1 . . . 3 5 . . 2 . 1 . . 2 Parts Rejected 8 | . . . . . . . . . . . . . . . . . 1 . 1 . . 3 . . . . 3 Parts Fused 3 | . . 1 . . . . . . . . . . . . . . . 1 . . . 1 . . . . . Data Loss (minor) 32 | . . . 1 . . . 2 1 1 . . . . 6 1 . . 7 5 . . 3 . 3 . . 2 Data Loss (major) 15 | . . 1 1 . . 1 1 1 . . . . . 1 . . . 1 5 . . 2 . . . . 1 Misfires 17 | . . . 3 . . 1 . 2 . . . . . 2 . . . 3 . . . 3 . 2 . . 1 Alerts 7 | . . . 2 . . . 1 1 . . . . . . . . . 1 . . . 2 . . . . . Misdirections 5 | . . . . . . . . . . . . . . 2 . . . . . . . 3 . . . . . Weapon Failures 19 | . . . . . . . . . . . . . . 7 . . 1 1 6 . . 1 . . . . 3 Overload Shots . | . . . . . . . . . . . . . . . . . . . . . . . . . . . . Overflow Damage 1879 | . . 42 . 1 39 132 . . . 12 97 15 52 70 29 . . . . . 65 180 . 822 47 209 67 Projectiles 1463 | . . . . . . 33 . . . 12 44 . 52 19 10 . . . . . 65 157 . 748 47 209 67 Explosions 339 | . . 42 . . 39 99 . . . . . 15 . 51 19 . . . . . . . . 74 . . . Melee 77 | . . . . 1 . . . . . . 53 . . . . . . . . . . 23 . . . . . Knockbacks 86 | . . 7 . . . . . . 1 8 7 . . 22 1 . . . . . . 1 . . . . 39 Impact 3 | . . . . . . . . . . . 1 . . . 1 . . . . . . 1 . . . . . Kinetic 78 | . . 7 . . . . . . 1 7 6 . . 18 . . . . . . . . . . . . 39 Secondary 5 | . . . . . . . . . . 1 . . . 4 . . . . . . . . . . . . . Self-Inflicted Damage 841 | . . 130 1 9 97 195 . . . . . 85 . 242 . . . 51 . . . 31 . . . . . Shots 22 | . . 4 1 . 3 7 . . . . . 1 . 4 . . . 1 . . . 1 . . . . . Rammed 4 | . . . . 4 . . . . . . . . . . . . . . . . . . . . . . . Targets Rammed 23 | . . . 1 4 . . . . . 3 4 . 1 2 1 . . . . . 1 2 3 . . 1 . Kicked 18 | . . . . . . . . . . 3 4 . 1 2 1 . . . . . 1 2 3 . . 1 . Crushed 1 | . . . 1 . . . . . . . . . . . . . . . . . . . . . . . . Highest Temperature 731 | 80 438 187 215 224 235 482 384 145 197 236 234 187 194 731 266 561 419 642 183 . . 152 16 116 . 180 15 Average Temperature 111 | 32 145 61 88 86 83 256 157 56 66 77 93 78 68 103 69 234 149 123 42 . . 56 8 116 . 93 12 Received Heat Transfer 3707 | . 316 363 39 340 324 93 . . 102 150 310 126 . 633 45 . 18 274 . . 39 228 163 56 . . 88 Effects 57 | . 3 . 1 . 1 4 2 . . . . . . 11 . 18 4 13 . . . . . . . . . Shutdowns 14 | . . . . . . 2 . . . . . . . 4 . 4 1 3 . . . . . . . . . Energy Bleed 7 | . 1 . . . 1 1 . . . . . . . 1 . 2 1 . . . . . . . . . . Interference 15 | . . . 1 . . . . . . . . . . 2 . 6 1 5 . . . . . . . . . Matter Decay 4 | . . . . . . . . . . . . . . . . 4 . . . . . . . . . . . Short Circuit 5 | . . . . . . 1 1 . . . . . . . . 1 1 1 . . . . . . . . . Damage (minor) 4 | . 1 . . . . . 1 . . . . . . 2 . . . . . . . . . . . . . Damage (major) 5 | . 1 . . . . . . . . . . . . . . 1 . 3 . . . . . . . . . Damage (core) 3 | . . . . . . . . . . . . . . 2 . . . 1 . . . . . . . . . Siege Activations . | . . . . . . . . . . . . . . . . . . . . . . . . . . . . Martial Activations 7 | . . . . . . . . . . . 3 3 1 . . . . . . . . . . . . . . Total Turns 108 | . . . . . . . . . . . 71 28 9 . . . . . . . . . . . . . . Longest Duration 36 | . . . . . . . . . . . 36 20 9 . . . . . . . . . . . . . . Shielding Activations . | . . . . . . . . . . . . . . . . . . . . . . . . . . . . Robots Disrupted 5 | . . . . . . . . . . . . . . 1 . . . 1 . . . 1 1 . 1 . . Combat Hostiles 5 | . . . . . . . . . . . . . . 1 . . . 1 . . . 1 1 . 1 . . Robots Corrupted 15 | . . . . . 1 . . 4 . . 1 2 . 4 . . 2 1 . . . . . . . . . Combat Hostiles 14 | . . . . . 1 . . 4 . . . 2 . 4 . . 2 1 . . . . . . . . . Parts Fried 34 | . . . . . 3 . . 10 . . 1 1 . 11 . . 3 2 . . 1 2 . . . . . Impact Corruptions 7 | . . . . 1 . . . . . . 4 . . . . . . . . . . 2 . . . . . Robots Melted 18 | . . . . . . . . . . . . . . . 3 . . 3 . . 3 4 2 2 1 . . Combat Hostiles 17 | . . . . . . . . . . . . . . . 3 . . 3 . . 2 4 2 2 1 . . Parts Melted 49 | 1 3 1 . . . 3 1 . . . 1 . . 4 4 . 2 6 . . 2 6 8 7 . . . Heat Transferred 25668 | 888 1036 2180 148 . 1150 370 407 . 222 . 925 237 . 2183 1325 1850 550 1633 177 . . 270 814 4569 311 1776 2647 Parts Sabotaged . | . . . . . . . . . . . . . . . . . . . . . . . . . . . . Parts Stolen . | . . . . . . . . . . . . . . . . . . . . . . . . . . . . Parts Stripped . | . . . . . . . . . . . . . . . . . . . . . . . . . . . . Power Chain Reactions 5 | . . . . . 1 . . 1 . . . 2 . 1 . . . . . . . . . . . . . Alert | -11 -10 -10 -8 -8 -6 -6 -6 -6 -5 -5 -5 -5 -5 -5 -4 -4 -4 -4 -4 -3 -3 -3 -2 -2 -1 -1 -1 ------- Run | Yrd Mat Sub Rec Scr Fac Low Low Dat Pro Fac Ext Cet Arc Hub Fac Was Fac Arm Lab Res Qua Sec Res Tes Acc Com Ac0 Maximum Alert Level 5 | . . . . . . . . . . . . . . 4 2 . 2 2 . . 1 2 3 3 2 5 . Low Security (%) 59 | 100 100 . 100 . 100 . . . . 100 100 100 100 37 56 100 40 28 . 100 34 27 . . . . . Level 1 13 | . . . . . . . . . . . . . . 4 21 . 38 48 . . 65 35 2 39 . 5 . Level 2 15 | . . . . . . . . . . . . . . 33 22 . 21 22 . . . 37 80 31 100 . . Level 3 3 | . . . . . . . . . . . . . . 11 . . . . . . . . 16 28 . 2 . Level 4 2 | . . . . . . . . . . . . . . 12 . . . . . . . . . . . 14 . Level 5 6 | . . . . . . . . . . . . . . . . . . . . . . . . . . 75 . High Security . | . . . . . . . . . . . . . . . . . . . . . . . . . . . . Max Security . | . . . . . . . . . . . . . . . . . . . . . . . . . . . . Peak Influence 1300 | 10 70 . 192 . 174 . . . . 126 193 116 124 1300 633 43 657 513 . 52 353 567 810 923 575 1083 . Initial 633 | . . . 192 . . . . . . . 37 100 7 11 633 43 . 305 . . . 109 279 322 453 328 . Average 206 | 1 19 . 72 . 55 . . . . 75 39 63 69 503 242 2 288 269 . 5 209 330 629 531 517 366 . Influence Increases 18319 | 50 211 728 274 . 422 195 60 . 253 340 527 184 146 1930 537 6 1381 776 . 83 524 954 779 1067 230 1482 5180 Destroy 0b10 Robot/C 5560 | . 160 640 40 . 240 160 40 . 140 220 360 120 80 700 260 . 520 460 . 40 260 420 160 460 20 60 . Destroy 0b10 Robot/NC 405 | 50 10 . 10 . 50 . . . 10 . 20 10 10 105 20 . 40 . . 5 10 20 5 10 5 15 . Destroy Leader 852 | . 34 10 . . 40 20 20 . 20 20 32 . . 138 70 . 100 110 . . 34 90 42 62 10 . . Allied During Kill 1115 | . . 3 . . . . . . 8 26 29 8 8 95 . . 592 58 . . 155 22 37 74 . . . Successful Hack 263 | . 7 . 29 . . . . . . . 30 . . . 29 . 3 8 . 26 27 49 14 41 . . . Select Force Hacks 180 | . . . 180 . . . . . . . . . . . . . . . . . . . . . . . . Disable Machine 1140 | . . . 15 . 15 . . . . 30 15 . 30 180 90 . 30 15 . . 30 150 60 135 . 120 225 Destroy Structure 7853 | . . . . . 32 . . . . 44 26 46 18 532 68 6 96 110 . 12 8 56 219 285 53 1287 4955 Lose Combat Pursuer 345 | . . 75 . . 45 15 . . 75 . 15 . . 30 . . . 15 . . . 15 60 . . . . Miscellaneous 606 | . . . . . . . . . . . . . . 150 . . . . . . . 132 182 . 142 . . Influence Decreases 13319 | 50 206 332 675 . 342 204 131 . 253 262 426 345 130 670 1707 130 756 1148 253 83 329 652 702 884 474 225 1950 Entered New Map 4541 | . . 3 209 . . 30 15 . . . 41 79 11 23 661 81 . 320 253 . . 86 218 252 304 185 1770 Time Decay 5624 | 50 196 209 456 . 242 134 116 . 243 192 333 176 119 427 416 27 246 458 . 83 209 486 254 362 150 40 . Lost Part 582 | . 10 40 10 . 100 40 . . 10 10 . 30 . 160 40 22 10 40 . . . 40 . . . . 20 Lost Ally 1372 | . . 80 . . . . . . . 60 52 60 . 60 140 . 200 180 . . 120 40 80 120 20 . 160 Purge Threat 1200 | . . . . . . . . . . . . . . . 450 . 300 150 . . . . 150 150 . . . Squads Dispatched 66 | . 1 . . . 4 . . . . 4 1 . . 8 6 . 5 7 . 5 5 5 5 9 1 . . Investigation 9 | . . . . . . . . . . 2 . . . . 2 . 1 2 . 2 . . . . . . . Extermination 19 | . . . . . 1 . . . . 1 . . . 1 2 . 1 3 . . 2 3 2 2 1 . . Reinforcement 26 | . 1 . . . 3 . . . . 1 1 . . 3 1 . 3 1 . 3 2 1 1 5 . . . Assault 7 | . . . . . . . . . . . . . . 3 . . . . . . . . 2 2 . . . Garrison 1 | . . . . . . . . . . . . . . 1 . . . . . . . . . . . . . Intercept 4 | . . . . . . . . . . . . . . . 1 . . 1 . . 1 1 . . . . . Searches Triggered . | . . . . . . . . . . . . . . . . . . . . . . . . . . . . Construction Impeded 5 | . . . . . . . . . . 1 . . . . . . 1 . . 1 1 1 . . . . . Haulers Reinforced 4 | . . . . . . . . . . . . . . 2 . . . . . 1 . . . 1 . . . Active Scanning Responses . | . . . . . . . . . . . . . . . . . . . . . . . . . . . . Cargo Convoy Interrupts . | . . . . . . . . . . . . . . . . . . . . . . . . . . . . Stealth | -11 -10 -10 -8 -8 -6 -6 -6 -6 -5 -5 -5 -5 -5 -5 -4 -4 -4 -4 -4 -3 -3 -3 -2 -2 -1 -1 -1 --------- Run | Yrd Mat Sub Rec Scr Fac Low Low Dat Pro Fac Ext Cet Arc Hub Fac Was Fac Arm Lab Res Qua Sec Res Tes Acc Com Ac0 Distress Signals 52 | . . . . . 1 . . . . . 3 . . 3 2 . 4 . . 7 . 4 1 2 . 25 . Communications Jammed . | . . . . . . . . . . . . . . . . . . . . . . . . . . . . Distress Signals . | . . . . . . . . . . . . . . . . . . . . . . . . . . . . Times Spotted 518 | . 15 54 2 7 18 9 2 4 13 13 19 8 9 47 21 8 29 29 1 9 17 46 28 33 6 11 60 Peak Tracking Total 10 | . 4 6 1 7 5 4 1 2 4 3 6 4 1 10 6 2 6 10 1 2 9 6 10 5 3 1 7 Tactical Retreats 17 | . . 2 . . 3 1 . . 2 . 1 . . 2 . 1 1 2 . . . 1 1 . . . . ECM-based Alert Blocks 2 | . . . . . . . . . . . . . . . . . 2 . . . . . . . . . . Traps | -11 -10 -10 -8 -8 -6 -6 -6 -6 -5 -5 -5 -5 -5 -5 -4 -4 -4 -4 -4 -3 -3 -3 -2 -2 -1 -1 -1 ------- Run | Yrd Mat Sub Rec Scr Fac Low Low Dat Pro Fac Ext Cet Arc Hub Fac Was Fac Arm Lab Res Qua Sec Res Tes Acc Com Ac0 Traps Triggered 7 | . 2 . . . . . . . . . . . . 1 1 . . 2 . . . . . . 1 . . Indirectly 1 | . . . . . . . . . . . . . . 1 . . . . . . . . . . . . . Trap Hack Attempts . | . . . . . . . . . . . . . . . . . . . . . . . . . . . . Triggered . | . . . . . . . . . . . . . . . . . . . . . . . . . . . . Disarmed . | . . . . . . . . . . . . . . . . . . . . . . . . . . . . Reprogrammed 1 | . . . . . . . . . . . . . . . . . . . . . 1 . . . . . . Reused . | . . . . . . . . . . . . . . . . . . . . . . . . . . . . Traps Extracted . | . . . . . . . . . . . . . . . . . . . . . . . . . . . . Installed . | . . . . . . . . . . . . . . . . . . . . . . . . . . . . Triggered . | . . . . . . . . . . . . . . . . . . . . . . . . . . . . Most Traps Carried 1 | . . . . . . 1 1 1 . . . . . . . . . . . . . . . . . . . Machines | -11 -10 -10 -8 -8 -6 -6 -6 -6 -5 -5 -5 -5 -5 -5 -4 -4 -4 -4 -4 -3 -3 -3 -2 -2 -1 -1 -1 ---------- Run | Yrd Mat Sub Rec Scr Fac Low Low Dat Pro Fac Ext Cet Arc Hub Fac Was Fac Arm Lab Res Qua Sec Res Tes Acc Com Ac0 Machines Disabled 95 | . . 4 1 1 1 . . . . 2 1 . 2 12 6 . 5 1 5 . 2 13 4 12 . 8 15 Max in Single Turn 4 | . . 3 1 1 1 . . . . 1 1 . . 4 3 . 1 1 2 . 1 1 2 1 . 2 4 Garrison Access 7 | . . . . . 1 . . . . . . . . 1 1 . . . . . . 1 1 1 1 . . Network Hub 2 | . . . . . . . . . . . . . . 2 . . . . . . . . . . . . . Energy Cycler 2 | . . . . . . . . . . . 1 . . . . . . 1 . . . . . . . . . Machines Repaired . | . . . . . . . . . . . . . . . . . . . . . . . . . . . . Machines Dismantled . | . . . . . . . . . . . . . . . . . . . . . . . . . . . . Machines Sabotaged . | . . . . . . . . . . . . . . . . . . . . . . . . . . . . Overloaded Fab Kills . | . . . . . . . . . . . . . . . . . . . . . . . . . . . . Hacking | -11 -10 -10 -8 -8 -6 -6 -6 -6 -5 -5 -5 -5 -5 -5 -4 -4 -4 -4 -4 -3 -3 -3 -2 -2 -1 -1 -1 --------- Run | Yrd Mat Sub Rec Scr Fac Low Low Dat Pro Fac Ext Cet Arc Hub Fac Was Fac Arm Lab Res Qua Sec Res Tes Acc Com Ac0 Machines Accessed 82 | . 2 2 12 2 2 1 1 4 . 3 2 . . 2 8 . 2 4 2 7 2 9 4 8 2 . 1 Terminals 41 | . 2 . 6 . . . . . . 1 2 . . 1 2 . 2 3 . 4 2 8 2 5 1 . . Fabricators 1 | . . . . . . . . . . . . . . . . . . . . 1 . . . . . . . Repair Stations 2 | . . . . . . . . . . . . . . . 2 . . . . . . . . . . . . Recycling Units 12 | . . . 6 . 1 . . . . 2 . . . . 2 . . 1 . . . . . . . . . Scanalyzers 5 | . . . . . . . . . . . . . . . 1 . . . . 1 . . 1 2 . . . Garrison Access 8 | . . . . . 1 . . . . . . . . 1 1 . . . . 1 . 1 1 1 1 . . Total Hacks 279 | . 8 4 26 20 5 1 1 29 . 7 4 . . 4 28 . 8 11 6 36 5 26 10 19 3 . 18 Successful 162 | . 3 4 16 20 2 1 1 29 . 3 2 . . 1 12 . 3 4 6 11 2 8 6 8 2 . 18 Failed 115 | . 5 . 10 . 3 . . . . 4 2 . . 3 15 . 5 7 . 24 3 18 4 11 1 . . Catastrophic 31 | . 2 . . . 2 . . . . 1 . . . 2 4 . . 1 . 8 2 5 1 3 . . . Database Lockouts 2 | . . . . . . . . . . . . . . . 1 . . . . 1 . . . . . . . Manual 67 | . 6 . 26 . . . . . . 3 . . . . 10 . 1 8 . 3 . 3 3 4 . . . Terminals 123 | . 8 . 20 . . . . . . 4 4 . . 2 9 . 8 9 . 13 5 19 6 14 2 . . Fabricators 4 | . . . . . . . . . . . . . . . . . . . . 4 . . . . . . . Repair Stations 13 | . . . . . . . . . . . . . . . 13 . . . . . . . . . . . . Recycling Units 16 | . . . 6 . 3 . . . . 3 . . . . 2 . . 2 . . . . . . . . . Scanalyzers 18 | . . . . . . . . . . . . . . . 2 . . . . 10 . . 3 3 . . . Garrison Access 26 | . . . . . 2 . . . . . . . . 2 2 . . . . 9 . 7 1 2 1 . . Terminal Hacks 119 | . 3 4 3 20 . 1 1 29 . 2 2 . . . 5 . 3 3 6 2 2 7 2 5 1 . 18 Record 56 | . . 3 . 19 . . . 11 . . . . . . . . . . 5 . . . . . . . 18 Part Schematic 13 | . 1 . 2 . . . . 9 . 1 . . . . . . . . . . . . . . . . . Robot Schematic 6 | . . . . . . . . 6 . . . . . . . . . . . . . . . . . . . Prototype ID Bank 6 | . . . 1 . . . . 3 . . 1 . . . 1 . . . . . . . . . . . . Open Door 9 | . . . . . . 1 1 . . . . . . . . . . . . 1 . 5 . . 1 . . Level Access Points 2 | . . . . . . . . . . . . . . . . . . . . . . 1 . 1 . . . Branch Access Points 1 | . . . . . . . . . . . . . . . . . . . . . . . 1 . . . . Alert Level 1 | . . . . . . . . . . . . . . . . . . . . . . . . 1 . . . Unreport Threat 8 | . . . . . . . . . . . . . . . 3 . 2 1 . . . . 1 1 . . . Locate Traps 1 | . . . . . . . . . . . . . . . . . . . . 1 . . . . . . . Reprogram Traps 1 | . . . . . . . . . . . . . . . . . . . . . 1 . . . . . . Maintenance Status 3 | . . . . . . . . . . . . . . . 1 . 1 . . . . . . 1 . . . Security Status 1 | . . . . . . . . . . . . . . . . . . . . . 1 . . . . . . Surveillance Status 1 | . . . . . . . . . . . 1 . . . . . . . . . . . . . . . . Recall Extermination 1 | . . . . . . . . . . . . . . . . . . 1 . . . . . . . . . Hauler Manifests 1 | . 1 . . . . . . . . . . . . . . . . . . . . . . . . . . Registered Components 2 | . . . . . . . . . . . . . . . . . . 1 . . . 1 . . . . . Zone Layout 2 | . 1 . . . . . . . . 1 . . . . . . . . . . . . . . . . . Proto ID Catalog 2 | . . 1 . 1 . . . . . . . . . . . . . . . . . . . . . . . Protovariant Controls 1 | . . . . . . . . . . . . . . . . . . . . . . . . 1 . . . Release Object 1 | . . . . . . . . . . . . . . . . . . . 1 . . . . . . . . Fabricator Hacks 2 | . . . . . . . . . . . . . . . . . . . . 2 . . . . . . . Load Schematic 1 | . . . . . . . . . . . . . . . . . . . . 1 . . . . . . . Build 1 | . . . . . . . . . . . . . . . . . . . . 1 . . . . . . . Repair Station Hacks 2 | . . . . . . . . . . . . . . . 2 . . . . . . . . . . . . Scan Component 2 | . . . . . . . . . . . . . . . 2 . . . . . . . . . . . . Recycling Unit Hacks 1 | . . . . . 1 . . . . . . . . . . . . . . . . . . . . . . Retrieve Components 1 | . . . . . 1 . . . . . . . . . . . . . . . . . . . . . . Scanalyzer 13 | . . . . . . . . . . . . . . . 1 . . . . 7 . . 3 2 . . . Insert Component 4 | . . . . . . . . . . . . . . . . . . . . 1 . . 3 . . . . Retrieve Study 9 | . . . . . . . . . . . . . . . 1 . . . . 6 . . . 2 . . . Garrison Access Hacks 7 | . . . . . 1 . . . . . . . . 1 1 . . . . . . 1 1 1 1 . . Unlock Access 1 | . . . . . . . . . . . . . . 1 . . . . . . . . . . . . . Seal Access 6 | . . . . . 1 . . . . . . . . . 1 . . . . . . 1 1 1 1 . . Unauthorized Hacks 18 | . . . 13 . . . . . . 1 . . . . 3 . . 1 . . . . . . . . . Terminals 8 | . . . 7 . . . . . . . . . . . 1 . . . . . . . . . . . . Botnet 3 | . . . 2 . . . . . . . . . . . 1 . . . . . . . . . . . . Skim 5 | . . . 5 . . . . . . . . . . . . . . . . . . . . . . . . Fabricators . | . . . . . . . . . . . . . . . . . . . . . . . . . . . . Repair Stations . | . . . . . . . . . . . . . . . . . . . . . . . . . . . . Recycling Units 10 | . . . 6 . . . . . . 1 . . . . 2 . . 1 . . . . . . . . . Tunnel 6 | . . . 6 . . . . . . . . . . . . . . . . . . . . . . . . Fedlink 1 | . . . . . . . . . . 1 . . . . . . . . . . . . . . . . . Scrapoids 3 | . . . . . . . . . . . . . . . 2 . . 1 . . . . . . . . . Scanalyzers . | . . . . . . . . . . . . . . . . . . . . . . . . . . . . Garrison Access . | . . . . . . . . . . . . . . . . . . . . . . . . . . . . Data Cores Recovered . | . . . . . . . . . . . . . . . . . . . . . . . . . . . . Used . | . . . . . . . . . . . . . . . . . . . . . . . . . . . . Hacking Detections 37 | . 2 . 6 . 1 . . . . 2 2 . . 2 3 . 2 1 . 4 2 5 1 4 . . . Full Trace Events 5 | . 1 . 1 . . . . . . 1 . . . . . . 1 . . 1 . . . . . . . Feedback Events . | . . . . . . . . . . . . . . . . . . . . . . . . . . . . Feedback Blocked . | . . . . . . . . . . . . . . . . . . . . . . . . . . . . Robot Schematics Acquired 7 | . . . . . . . . 6 . . . . . . . . . . . . 1 . . . . . . Robots Built . | . . . . . . . . . . . . . . . . . . . . . . . . . . . . Authchips . | . . . . . . . . . . . . . . . . . . . . . . . . . . . . Time . | . . . . . . . . . . . . . . . . . . . . . . . . . . . . Total Robot Build Rating . | . . . . . . . . . . . . . . . . . . . . . . . . . . . . Part Schematics Acquired 21 | . 1 . 1 . . . . 9 . 1 . . . . . . . . . . 3 6 . . . . . Parts Built 1 | . . . . . . . . . . . . . . . . . . . . 1 . . . . . . . Authchips . | . . . . . . . . . . . . . . . . . . . . . . . . . . . . Time 17 | . . . . . . . . . . . . . . . . . . . . 17 . . . . . . . Total Part Build Rating 1 | . . . . . . . . . . . . . . . . . . . . 1 . . . . . . . Part Studies Acquired 9 | . . . . . . . . . . . . . . . 1 . . . . 6 . . . 2 . . . Parts Repaired . | . . . . . . . . . . . . . . . . . . . . . . . . . . . . Time . | . . . . . . . . . . . . . . . . . . . . . . . . . . . . Parts Recycled . | . . . . . . . . . . . . . . . . . . . . . . . . . . . . Recycled Matter . | . . . . . . . . . . . . . . . . . . . . . . . . . . . . Retrieved Matter . | . . . . . . . . . . . . . . . . . . . . . . . . . . . . Retrieved Components . | . . . . . . . . . . . . . . . . . . . . . . . . . . . . Parts Scanalyzed . | . . . . . . . . . . . . . . . . . . . . . . . . . . . . Part Schematics Acquired . | . . . . . . . . . . . . . . . . . . . . . . . . . . . . Parts Damaged . | . . . . . . . . . . . . . . . . . . . . . . . . . . . . Bothacking | -11 -10 -10 -8 -8 -6 -6 -6 -6 -5 -5 -5 -5 -5 -5 -4 -4 -4 -4 -4 -3 -3 -3 -2 -2 -1 -1 -1 ------------ Run | Yrd Mat Sub Rec Scr Fac Low Low Dat Pro Fac Ext Cet Arc Hub Fac Was Fac Arm Lab Res Qua Sec Res Tes Acc Com Ac0 Used RIF Installer . | . . . . . . . . . . . . . . . . . . . . . . . . . . . . Robots Hacked 7 | . . . . 2 . . . . . . . . . . . . . . . . . . . . . . 5 Non-combat . | . . . . . . . . . . . . . . . . . . . . . . . . . . . . Combat 4 | . . . . 2 . . . . . . . . . . . . . . . . . . . . . . 2 Robot Hacks Applied 4 | . . . . 2 . . . . . . . . . . . . . . . . . . . . . . 2 parse_system 4 | . . . . 2 . . . . . . . . . . . . . . . . . . . . . . 2 Manual 5 | . . . . . . . . . . . . . . . . . . . . . . . . . . . 5 Relay Couplers Released 5 | . . . . . . . . . . . . . . 3 . . . . . . . 2 . . . . . Machine Destruction 5 | . . . . . . . . . . . . . . 3 . . . . . . . 2 . . . . . Fabnet Peak Effective % . | . . . . . . . . . . . . . . . . . . . . . . . . . . . . Robots Rewired 14 | . . . . . . . . . . . 8 . . 1 . . . 1 . . . 1 1 1 1 . . Allies Hacked 6 | . . . . . . . . . . 1 . . . . . . . 1 . . 2 . 2 . . . . Hacks Repelled . | . . . . . . . . . . . . . . . . . . . . . . . . . . . . Allies | -11 -10 -10 -8 -8 -6 -6 -6 -6 -5 -5 -5 -5 -5 -5 -4 -4 -4 -4 -4 -3 -3 -3 -2 -2 -1 -1 -1 -------- Run | Yrd Mat Sub Rec Scr Fac Low Low Dat Pro Fac Ext Cet Arc Hub Fac Was Fac Arm Lab Res Qua Sec Res Tes Acc Com Ac0 Total Allies 91 | . . 4 . . . . . . 3 . 9 1 . 2 10 20 . 10 . . 6 2 4 6 1 3 10 Largest Group 19 | . . 4 . . . . . . 3 3 3 3 1 1 5 19 19 5 1 1 6 1 3 5 1 3 4 Highest-Rated Group 702 | . . 41 . . . . . . 117 117 109 138 138 138 244 702 702 238 143 143 422 110 174 158 60 207 435 Highest-Rated Ally 145 | . . 17 . . . . . . 39 39 39 138 138 138 50 141 50 143 143 143 82 110 58 80 60 69 145 Initial UFD Resources 40 | . . . . . 23 23 23 23 26 26 36 36 36 36 40 34 34 34 31 34 34 34 36 36 38 38 38 Total Orders 8 | . . . . . . . . . . . 2 . . 1 . . . . 5 . . . . . . . . STAY 4 | . . . . . . . . . . . 1 . . 1 . . . . 2 . . . . . . . . ROAM 1 | . . . . . . . . . . . . . . . . . . . 1 . . . . . . . . FOLLOW 3 | . . . . . . . . . . . 1 . . . . . . . 2 . . . . . . . . Ally Attacks 686 | . . 26 . . . . . . 1 39 55 12 5 68 11 . 159 95 4 17 36 16 10 30 1 1 100 Total Damage 17803 | . . 279 . . . . . . 23 633 770 210 495 3249 309 . 4058 2571 93 842 931 381 342 549 15 34 2019 Kills 110 | . . 3 . . . . . . 1 3 6 . 2 25 2 . 28 17 1 3 8 2 . 3 . . 6 Allies Corrupted 8 | . . . . . . . . . . 1 . . . 1 . . . 1 . . . . 2 . . . 3 Allies Melted 5 | . . . . 5 . . . . . . . . . . . . . . . . . . . . . . . X0-1V1 Amusement Gains 811 | . 20 23 26 50 51 13 12 72 17 8 12 6 3 79 66 . . 15 53 20 52 29 31 40 25 45 43 Good Acts 192 | . 1 39 3 1 4 3 2 . 3 2 6 5 . 9 6 8 4 12 . 1 6 14 9 11 1 10 32 Bad Acts 79 | . 1 46 . . 1 . . . 2 2 1 . 1 3 . . . . . . 3 4 3 . 1 3 8 Intel | -11 -10 -10 -8 -8 -6 -6 -6 -6 -5 -5 -5 -5 -5 -5 -4 -4 -4 -4 -4 -3 -3 -3 -2 -2 -1 -1 -1 ------- Run | Yrd Mat Sub Rec Scr Fac Low Low Dat Pro Fac Ext Cet Arc Hub Fac Was Fac Arm Lab Res Qua Sec Res Tes Acc Com Ac0 Active Infowar (turns) 11154 | 89 558 568 191 268 156 558 597 237 1015 450 879 373 248 746 70 321 540 810 . . . 618 122 30 254 1367 89 Optics 2591 | . . 145 . . . 558 36 . . . 485 373 248 746 . . . . . . . . . . . . . Sensors 5275 | . . . . . 156 29 508 181 895 450 394 . . . . . 529 742 . . . . 11 30 143 1190 17 IFF 75 | . . . . . . . . . . . . . . 5 . 2 . 68 . . . . . . . . . Terrain 457 | . . . . . . . 312 145 . . . . . . . . . . . . . . . . . . . Structural 879 | . . . . . . . . . . . . . . . 70 . . . . . . 618 111 . 8 . 72 Traps 68 | . . . . 68 . . . . . . . . . . . . . . . . . . . . . . . Seismic 1070 | 89 558 423 . . . . . . . . . . . . . . . . . . . . . . . . . Decoding 409 | . . . 191 200 . . . . . . . . . . . 18 . . . . . . . . . . . Cloaking 114 | . . . . . . . . . . . . . . . . 114 . . . . . . . . . . . Spoofing 239 | . . . . . . . . . 120 . 10 109 . . . . . . . . . . . . . . . Jamming 1082 | . . . . . . . . . . . . . . . . . . . . . . . . . 103 979 . ECM 574 | . . . . . . . . . . . . . . . . 301 273 . . . . . . . . . . Robot Analysis Total 154 | . . . . . . . . 154 . . . . . . . . . . . . . . . . . . . Derelict Logs Recovered 8 | . . 2 . 2 . 1 1 . 2 . . . . . . . . . . . . . . . . . . Drone Launches . | . . . . . . . . . . . . . . . . . . . . . . . . . . . . Drone Recoveries . | . . . . . . . . . . . . . . . . . . . . . . . . . . . . Exploration | -11 -10 -10 -8 -8 -6 -6 -6 -6 -5 -5 -5 -5 -5 -5 -4 -4 -4 -4 -4 -3 -3 -3 -2 -2 -1 -1 -1 ------------- Run | Yrd Mat Sub Rec Scr Fac Low Low Dat Pro Fac Ext Cet Arc Hub Fac Was Fac Arm Lab Res Qua Sec Res Tes Acc Com Ac0 Turns Passed 33118 | 325 720 3652 1566 6965 792 588 597 266 1250 465 1424 373 248 1118 1013 868 540 1153 876 791 495 1274 547 831 302 1368 2711 Spaces Moved 15750 | 148 355 1868 601 2421 311 370 348 129 339 157 612 145 101 388 467 299 200 447 342 449 352 817 347 557 207 1035 1938 Core 88 | 3 . . . 85 . . . . . . . . . . . . . . . . . . . . . . . Treads 2472 | 145 355 748 506 614 59 . . . . . . . . . . 44 . . . . 1 . . . . . . Legs 10816 | . . . . 1693 3 . . . 322 157 612 145 101 388 466 254 200 442 342 449 351 813 346 557 206 1035 1934 Wheels 2358 | . . 1120 95 29 249 370 348 129 17 . . . . . . 1 . . . . . . . . . . . Hover . | . . . . . . . . . . . . . . . . . . . . . . . . . . . . Flight . | . . . . . . . . . . . . . . . . . . . . . . . . . . . . Fastest Speed 50 | 50 160 120 130 50 110 115 160 145 160 190 186 182 182 104 174 160 198 192 196 100 98 98 96 106 107 103 98 Average Speed 172 | 157 160 166 254 255 175 136 160 155 338 242 189 186 186 182 188 237 212 198 197 161 116 110 108 107 107 106 102 Slowest Speed 570 | 160 160 250 360 360 400 160 160 160 400 260 255 187 187 190 198 570 223 280 280 196 240 168 170 111 107 169 170 Overloaded Moves . | . . . . . . . . . . . . . . . . . . . . . . . . . . . . Propulsion Burnouts . | . . . . . . . . . . . . . . . . . . . . . . . . . . . . Robots Hopped . | . . . . . . . . . . . . . . . . . . . . . . . . . . . . Potential Cave-ins 9 | . . . . . . . . . . . . . . . . . . . . . . . 2 . . . 7 Cave-ins Triggered . | . . . . . . . . . . . . . . . . . . . . . . . . . . . . Teleports 214 | . . . . . . . . . . . . . . . 1 . . 5 . . . 26 16 22 9 43 92 Exploration Rate (%) 53 | 6 48 93 98 90 7 70 68 79 51 4 83 66 80 33 16 88 10 31 98 15 50 53 17 83 9 50 92 Regions Visited 27 Branch Regions 18 Pre-discovered Areas 34 | . . 2 7 5 . . . 20 . . . . . . . . . . . . . . . . . . . Known Exits Taken 13 | . . 1 1 1 1 1 1 . 1 1 . . . . . . . . 1 . . 1 1 1 1 . . Unknown Exits Taken 12 | 1 1 . . . . . . 1 . . 1 1 1 1 . . 1 1 . 1 1 . . . . 1 . Scrap Searched 26 | . . 10 . 7 . 3 4 . 2 . . . . . . . . . . . . . . . . . . Spaces Dug 1191 | . . 10 . . . . . . 1 . . . . 10 15 . 1 4 . 2 3 10 14 11 12 774 324 Terrain Destroyed 5500 | . . 198 . 3 64 83 4 7 6 15 6 36 7 407 32 3 4 47 10 3 4 33 185 106 13 1096 3128 Melee 2 | . . . . . . . . . . . . . . . . . . . . . . . 2 . . . . Projectile 4595 | . . 17 . 3 1 2 4 . 6 15 6 3 7 61 20 3 4 10 6 3 4 23 183 30 13 1043 3128 AOE 899 | . . 181 . . 63 81 . 7 . . . 33 . 346 12 . . 37 . . . 10 . 76 . 53 . Terrain Rammed . | . . . . . . . . . . . . . . . . . . . . . . . . . . . . Walls Destroyed . | . . . . . . . . . . . . . . . . . . . . . . . . . . . . Machines Disabled . | . . . . . . . . . . . . . . . . . . . . . . . . . . . . Actions | -11 -10 -10 -8 -8 -6 -6 -6 -6 -5 -5 -5 -5 -5 -5 -4 -4 -4 -4 -4 -3 -3 -3 -2 -2 -1 -1 -1 --------- Run | Yrd Mat Sub Rec Scr Fac Low Low Dat Pro Fac Ext Cet Arc Hub Fac Was Fac Arm Lab Res Qua Sec Res Tes Acc Com Ac0 Total 19742 | 193 438 2196 623 3196 447 425 379 175 408 197 798 219 142 593 546 436 276 637 488 512 435 1104 459 674 258 1214 2274 Wait 1368 | 9 14 32 1 716 55 12 8 1 34 3 21 29 16 36 2 49 29 61 12 26 15 72 12 18 17 21 47 Move 15723 | 147 354 1867 600 2420 310 369 347 128 338 156 611 144 100 387 467 298 199 446 341 448 351 816 346 556 206 1034 1937 Hop . | . . . . . . . . . . . . . . . . . . . . . . . . . . . . Pick Up 309 | 6 11 34 3 21 5 12 6 8 6 4 8 5 13 16 7 12 2 13 20 7 12 19 16 5 2 20 16 Fast Attach 227 | 7 6 12 1 5 16 6 1 9 1 3 6 2 1 11 6 7 6 12 13 3 8 17 7 5 1 22 33 Attach 134 | . 2 7 . 3 2 5 . 4 4 3 . 6 1 11 3 6 2 6 8 7 . 14 9 1 2 14 14 Detach 33 | . 2 . . 2 . 1 . 1 . . . . . 1 1 3 2 3 3 . . 2 2 . . 2 8 Swap 248 | . 5 23 1 3 3 1 2 3 6 2 6 5 . 19 15 3 6 26 6 7 4 18 13 10 12 11 38 Drop 389 | . 6 34 2 16 3 1 9 10 3 5 15 11 2 14 10 9 7 24 33 9 25 19 18 14 . 46 44 Fire 1162 | 24 38 170 14 3 53 18 6 11 16 18 34 17 8 95 34 49 23 44 52 3 18 124 29 64 17 43 137 Melee 8 | . . 3 . 2 . . . . . . . . . . . . . . . . . . 3 . . . . Ram 4 | . . . . 4 . . . . . . . . . . . . . . . . . . . . . . . Kick 18 | . . . . . . . . . . 3 4 . 1 2 1 . . . . . 1 2 3 . . 1 . Crush 1 | . . . 1 . . . . . . . . . . . . . . . . . . . . . . . . Escape Stasis . | . . . . . . . . . . . . . . . . . . . . . . . . . . . . Rewire 95 | . . . . . . . . . . . 93 . . 1 . . . . . . 1 . . . . . . Trap . | . . . . . . . . . . . . . . . . . . . . . . . . . . . . Miscellaneous 23 | . . 14 . 1 . . . . . . . . . . . . . 2 . 2 . 1 1 1 1 . . Route ------- -11/Scrapyard -10/Materials (discovered 4 exits: [*Mat x2] / [*Min] / *Sub) -10/Subcaves (discovered 2 exits: *Mat / *Rec) -8/Recycling (discovered 2 exits: *Fac / *Scr) -8/Scraptown (discovered 2 exits: *Fac x2) -6/Factory (discovered 3 exits: Fac / *Low x2) -6/Lower Caves -6/Lower Caves (discovered 2 exits: Fac / *Dat) -6/Data Miner -5/Proximity Caves -5/Factory (discovered 2 exits: Upp / *Ext) -5/Extension (discovered 3 exits: *Fac x2 / [*Cet]) -5/Cetus (discovered 2 exits: *Fac / [*Arc]) -5/Archives (discovered 3 exits: *Fac / *Hub x2) -5/Hub_04(d) -4/Factory (discovered 2 exits: Res x2) -4/Waste -4/Factory -4/Armory -4/Lab -3/Research (discovered 4 exits: *Res x2 / *Qua x2) -3/Quarantine (discovered 3 exits: Res / *Sec / [*Frg]) -3/Section 7 -2/Research (discovered 2 exits: *Tes x2) -2/Testing -1/Access -1/Command (discovered 3 exits: Sur x2 / *Ac0) -1/Access_0 0b11 Command History --------- Turn | Location | Event 4 | -11/Scrapyard | Discovered new exit (range 15) 326 | -11/Scrapyard | Entered Materials 327 | -10/Materials | Build established: Mutant 366 | -10/Materials | Discovered new exit (range 7) 550 | -10/Materials | Discovered new exit (range 14) 654 | -10/Materials | Discovered new exit (range 12) 826 | -10/Materials | Derelicts attacked the area 835 | -10/Materials | Discovered new exit (range 6) 906 | -10/Materials | Prayed at D.C.S.S. Altar Unit 909 | -10/Materials | Core integrity permanently improved by X0-1V1 (+200) 988 | -10/Materials | X0-1V1 mutated your Weapon slot to Utility slot 1046 | -10/Materials | Entered Subcaves 1398 | -10/Subcaves | Sensors blinded by X0-1V1 1474 | -10/Subcaves | Ranged accuracy permanently improved by X0-1V1 (+5%; -50 max core) 2049 | -10/Subcaves | Visited Clippyterm 2056 | -10/Subcaves | Learned location of Section 7 (-3) 2281 | -10/Subcaves | Shifting Twisted Machinery released Battle Rifle 2409 | -10/Subcaves | Shifting Twisted Machinery released Battle Cannon 2426 | -10/Subcaves | System corruption reached 10% 2431 | -10/Subcaves | Identified exit to Materials 2431 | -10/Subcaves | X0-1V1 revealed exit location to -8/Materials 2459 | -10/Subcaves | Shifting Twisted Machinery released Spk. Treads 2467 | -10/Subcaves | X0-1V1 activates XOMVISION 2481 | -10/Subcaves | Shifting Twisted Machinery released Sub. Shrapnel Launcher 2547 | -10/Subcaves | Identified exit to Recycling 2547 | -10/Subcaves | X0-1V1 revealed exit location to -8/Recycling 2576 | -10/Subcaves | X0-1V1 sent you into danger 2661 | -10/Subcaves | X0-1V1 revealed exit location to -8/Materials 2707 | -10/Subcaves | X0-1V1 sent hostile S-10 Pest (x5) 2711 | -10/Subcaves | X0-1V1 whisked you away to safety 2807 | -10/Subcaves | X0-1V1 mutated your Propulsion slot to Weapon slot 2833 | -10/Subcaves | X0-1V1 sent hostile S-10 Pest (x4) 2845 | -10/Subcaves | Ambushed by Subdweller buried in earth 2845 | -10/Subcaves | Ambushed by Subdweller buried in earth 3177 | -10/Subcaves | Learned location of Zion (-7) 3177 | -10/Subcaves | Met a Zionite searching for "candidates" 3182 | -10/Subcaves | Learned 8 Materials zone layouts 3235 | -10/Subcaves | Disturbed a concealed Subdweller 3370 | -10/Subcaves | A swath of the cavern ceiling suddenly collapsed 3455 | -10/Subcaves | Ambushed by Subdweller buried in earth 3476 | -10/Subcaves | X0-1V1 activates XOMVISION 3485 | -10/Subcaves | Core integrity restored by X0-1V1 (+76) 3618 | -10/Subcaves | X0-1V1 tapped a No Entrance sign 3625 | -10/Subcaves | X0-1V1 sent hostile G-34 Mercenary (x5) 3729 | -10/Subcaves | Shifting Twisted Machinery released Battle Rifle 3757 | -10/Subcaves | Shifting Twisted Machinery released Sub. Machine Gun 3970 | -10/Subcaves | Build established: Subdweller-Mutant 4012 | -10/Subcaves | X0-1V1 sent you into danger 4026 | -10/Subcaves | Ambushed by Subdweller buried in earth 4143 | -10/Subcaves | Visited 4L-MR0's lab 4154 | -10/Subcaves | Found Powered Cannon 4158 | -10/Subcaves | Found Prototype Device 4158 | -10/Subcaves | Identified Sfc. Transmogrifier 4202 | -10/Subcaves | X0-1V1 sent hostile S-10 Pest (x4) 4212 | -10/Subcaves | X0-1V1 sent allied G-34 Mercenary (x4) 4245 | -10/Subcaves | X0-1V1 mutated your Weapon slot to Power slot 4284 | -10/Subcaves | X0-1V1 sent you into danger 4292 | -10/Subcaves | Core integrity fell below 50% 4301 | -10/Subcaves | Core integrity restored by X0-1V1 (+104) 4305 | -10/Subcaves | X0-1V1 activates XOMVISION 4342 | -10/Subcaves | Build established: Mutant 4370 | -10/Subcaves | Ambushed by Subdweller buried in earth 4382 | -10/Subcaves | X0-1V1 sent hostile S-10 Pest (x3) 4408 | -10/Subcaves | Destroyed 8 combat bots 4571 | -10/Subcaves | Ambushed by angry Subdweller bent on revenge 4698 | -10/Subcaves | Entered Recycling 5200 | -8/Recycling | Discovered new exit (range 16) 6075 | -8/Recycling | Learned 4 Factory zone layouts 6125 | -8/Recycling | Identified exit to Scraptown 6125 | -8/Recycling | X0-1V1 revealed exit location to -8/Scraptown 6136 | -8/Recycling | Learned 2 Lower Caves zone layouts 6189 | -8/Recycling | Identified exit to Factory 6200 | -8/Recycling | Scanned before Scraplab entrance 6234 | -8/Recycling | Learned 2 Lower Caves zone layouts 6236 | -8/Recycling | Entered Scraplab 6264 | -8/Recycling | Entered Scraptown 6567 | -8/Scraptown | Visited Symbiants 6679 | -8/Scraptown | Visited SPCMW 7336 | -8/Scraptown | Scanned Subdweller tech in exchange for log data 7344 | -8/Scraptown | Learned Factory trap positions 7347 | -8/Scraptown | Learned 12 Factory zone layouts 7412 | -8/Scraptown | Visited Comm Corps 7479 | -8/Scraptown | Visited Spacefarers 7581 | -8/Scraptown | Visited Bundlers 7713 | -8/Scraptown | Visited Fellowship of the Rings 8168 | -8/Scraptown | Visited UFD Registry 8168 | -8/Scraptown | Registered with UFD as "Shortform" 8219 | -8/Scraptown | Visited Derelict Rescue Squad 8263 | -8/Scraptown | Visited Botcube Research 8302 | -8/Scraptown | Visited LU-1G1's Boring Crew 8362 | -8/Scraptown | Delivered Scrap Shield to a Scientist 8597 | -8/Scraptown | Visited A0-MCA Data Center 8610 | -8/Scraptown | Given a C+ rating by A0-MCA 8650 | -8/Scraptown | Visited Scrap Suit Storage 8711 | -8/Scraptown | Visited Curators Association 8784 | -8/Scraptown | Visited Chapter 10 8819 | -8/Scraptown | Visited Science Guys 8896 | -8/Scraptown | Visited Cartography Club 10523 | -8/Scraptown | Learned location of Recycling (-8) 10523 | -8/Scraptown | Learned location of Archives (-5) 10523 | -8/Scraptown | Learned 12 Materials zone layouts 10523 | -8/Scraptown | Learned 12 Factory zone layouts 10523 | -8/Scraptown | Learned 16 Research zone layouts 10523 | -8/Scraptown | Learned 4 Storage zone layouts 10523 | -8/Scraptown | Learned 4 Recycling zone layouts 10523 | -8/Scraptown | Learned 12 Lower Caves zone layouts 10523 | -8/Scraptown | Learned 20 Lower Caves zone layouts 10523 | -8/Scraptown | Learned 8 Proximity Caves zone layouts 10523 | -8/Scraptown | Learned location of 2 exits from Lower Caves 10523 | -8/Scraptown | Learned location of 3 exits from Lower Caves 10523 | -8/Scraptown | Learned location of 1 exit from Upper Caves 10534 | -8/Scraptown | Found Deep Structural Scanner 12160 | -8/Scraptown | Found Lrg. Botcube 12992 | -8/Scraptown | Met Optimus 12992 | -8/Scraptown | Accepted into 0bPrime 13158 | -8/Scraptown | Civil war broke out across Scraptown 13165 | -8/Scraptown | Found Personal Teleporter v0.10 13213 | -8/Scraptown | Found Prototype Processor 13223 | -8/Scraptown | Core integrity fell below 20% 13229 | -8/Scraptown | Entered Factory 13229 | -6/Factory | Evolved 8 slots: Propulsion x2, Utility x4, Weapon x2 13229 | -6/Factory | Identified Expert System 13230 | -6/Factory | Identified exit to Lower Caves 13230 | -6/Factory | Identified exit to Factory 13231 | -6/Factory | Loaded intel: 70 trap records 13243 | -6/Factory | Lost 8 allies 13481 | -6/Factory | Inventory capacity permanently improved by X0-1V1 (+2; -200 max core) 13830 | -6/Factory | Build established: Scavenger-Tank 14021 | -6/Factory | Entered Lower Caves 14022 | -6/Lower Caves | Identified exit to Lower Caves 14022 | -6/Lower Caves | Lost 4 parts (1u3w) 14023 | -6/Lower Caves | UFD Scientist delivered a prototype 14023 | -6/Lower Caves | Attracted the attention of an 0b10 checkpoint 14025 | -6/Lower Caves | Found Prototype Protection 14062 | -6/Lower Caves | Lost 4 parts (2n1u1w) 14269 | -6/Lower Caves | Learned location of 1 exit from Lower Caves 14300 | -6/Lower Caves | Encountered a Warlord checkpoint 14423 | -6/Lower Caves | Build established: Hauler-Gunner 14609 | -6/Lower Caves | Entered another Lower Caves area 14610 | -6/Lower Caves | Identified exit to Data Miner 14997 | -6/Lower Caves | Core integrity fell below 50% 15183 | -6/Lower Caves | Learned Factory trap positions 15206 | -6/Lower Caves | Entered Data Miner 15206 | -6/Data Miner | Discovered new exit (range 6) 15237 | -6/Data Miner | Met Data Miner 15267 | -6/Data Miner | Acquired the access code to Warlord's prototype stash 15287 | -6/Data Miner | Received God Mode back door access code from Data Miner 15305 | -6/Data Miner | Interfaced with the Data Conduit 15373 | -6/Data Miner | System corruption reached 10% 15386 | -6/Data Miner | Lost 5 parts (2p2u1w) 15444 | -6/Data Miner | System corruption reached 30% 15472 | -6/Data Miner | Entered Proximity Caves 15808 | -5/Proximity Caves | X0-1V1 activates XOMVISION 15922 | -5/Proximity Caves | Build established: Hauler-Tank 16303 | -5/Proximity Caves | Attracted the attention of an 0b10 checkpoint 16364 | -5/Proximity Caves | Learned 4 Factory zone layouts 16481 | -5/Proximity Caves | Learned Factory stockpile data 16568 | -5/Proximity Caves | Spotted B-75 Beast 16568 | -5/Proximity Caves | X0-1V1 sent you into danger 16571 | -5/Proximity Caves | X0-1V1 sent allied Guerrilla (x3) 16571 | -5/Proximity Caves | Allies destroyed B-75 Beast 16607 | -5/Proximity Caves | Found DCF Scrap (9 items) 16722 | -5/Proximity Caves | Entered Factory 16722 | -5/Factory | Accompanied by 3 allies 16722 | -5/Factory | Evolved 2 slots: Propulsion x2 16723 | -5/Factory | Identified exit to Upper Caves 16723 | -5/Factory | Identified exit to Extension 16725 | -5/Factory | Loaded intel: 118 trap records 16727 | -5/Factory | Loaded intel: 291 machine locations 16745 | -5/Factory | Loaded intel: 8 recycling unit locations 17014 | -5/Factory | Build established: Hauler-Skirmisher 17035 | -5/Factory | X0-1V1 downgraded hostiles (x1) 17158 | -5/Factory | X0-1V1 downgraded hostiles (x1) 17187 | -5/Factory | Entered Extension 17188 | -5/Extension | Loaded intel: 30 machine locations 17193 | -5/Extension | X0-1V1 dreamt of freedom 17193 | -5/Extension | Rescued a captive Derelict 17212 | -5/Extension | Rescued a captive Derelict 17218 | -5/Extension | Rescued a captive Derelict 17220 | -5/Extension | Rescued a captive Derelict 17222 | -5/Extension | Rescued a captive Derelict 17227 | -5/Extension | Rescued a captive Derelict 17359 | -5/Extension | X0-1V1 foreshadows a heat wave 17581 | -5/Extension | Ambient heat levels rising (+10) 17703 | -5/Extension | Lost 3 allies 17743 | -5/Extension | Build established: Hauler-Gunner 17853 | -5/Extension | Ambient heat levels rising (+10) 18047 | -5/Extension | Spotted B-75 Beast 18065 | -5/Extension | Destroyed B-75 Beast 18080 | -5/Extension | Discovered new exit (range 13) 18114 | -5/Extension | Extracted ID and sensor layout for unrecognized location from A7's data core 18132 | -5/Extension | Ambient heat levels falling (-10) 18375 | -5/Extension | X0-1V1 destroyed Energy Cycler 18382 | -5/Extension | Ambient heat levels falling (-10) 18407 | -5/Extension | Build established: Hauler-Tank 18479 | -5/Extension | X0-1V1 activates XOMVISION 18569 | -5/Extension | Discovered new exit (range 10) 18571 | -5/Extension | Discovered new exit (range 6) 18611 | -5/Extension | Entered Cetus 18611 | -5/Cetus | Accompanied by 3 allies 18612 | -5/Cetus | Loaded intel: 24 machine locations 18628 | -5/Cetus | Spotted Cetus Guard 18642 | -5/Cetus | Spotted Cetus Guard 18644 | -5/Cetus | Spotted Cetus Guard 18644 | -5/Cetus | Spotted Cetus Guard 18669 | -5/Cetus | Destroyed Cetus Guard 18669 | -5/Cetus | Destroyed Cetus Guard 18682 | -5/Cetus | Destroyed Cetus Guard 18771 | -5/Cetus | X0-1V1 opened Sealed Heavy Doors 18778 | -5/Cetus | Discovered new exit (range 21) 18818 | -5/Cetus | Spotted Cetus Guard 18818 | -5/Cetus | Spotted Cetus Guard 18818 | -5/Cetus | Spotted Cetus Guard 18818 | -5/Cetus | Spotted Cetus Guard 18830 | -5/Cetus | Discovered new exit (range 21) 18846 | -5/Cetus | Attached CPS modules to Cetus Guard 18852 | -5/Cetus | Weapon slot count temporarily expanded by X0-1V1 (+1) 18855 | -5/Cetus | Destroyed Cetus Guard 18855 | -5/Cetus | Destroyed Cetus Guard 18863 | -5/Cetus | Destroyed Cetus Guard 18891 | -5/Cetus | Lost 3 parts (1n2w) 18892 | -5/Cetus | Met Revision 17 18911 | -5/Cetus | Lrg. Botcube activated 18939 | -5/Cetus | Lrg. Botcube completed mutation into treaded form, armed with 4 guns 18942 | -5/Cetus | Attached CPS modules to *Exp. Em Shield Getter 18984 | -5/Cetus | Entered Archives 18984 | -5/Archives | Accompanied by 1 ally 18985 | -5/Archives | Loaded intel: 8 machine locations 19048 | -5/Archives | Discovered new exit (range 22) 19123 | -5/Archives | Discovered new exit (range 22) 19150 | -5/Archives | Discovered new exit (range 22) 19164 | -5/Archives | Build established: Hauler-Gunner 19232 | -5/Archives | Entered Hub_04(d) 19232 | -5/Hub_04(d) | Accompanied by 1 ally 19233 | -5/Hub_04(d) | Loaded intel: 88 machine locations 19326 | -5/Hub_04(d) | Garrison activated, responded to threat 19375 | -5/Hub_04(d) | Identified exit to Garrison 19699 | -5/Hub_04(d) | Network Hub disabled 19739 | -5/Hub_04(d) | Spotted Lightning 19744 | -5/Hub_04(d) | Spotted Lightning 19752 | -5/Hub_04(d) | Spotted Lightning 19764 | -5/Hub_04(d) | System corruption reached 10% 19774 | -5/Hub_04(d) | Destroyed Lightning 19782 | -5/Hub_04(d) | Attached CPS modules to Lightning 19793 | -5/Hub_04(d) | Lost 3 parts (1n1u1w) 19798 | -5/Hub_04(d) | Rewired Lightning 19800 | -5/Hub_04(d) | Attached CPS modules to Lightning 19827 | -5/Hub_04(d) | Destroyed Lightning 19843 | -5/Hub_04(d) | Found Prototype Energy Cannon 19849 | -5/Hub_04(d) | Found Exp. Phase Shifter 19852 | -5/Hub_04(d) | Found Exp. EM Shield 19868 | -5/Hub_04(d) | Found Lrg. Botcube 19926 | -5/Hub_04(d) | X0-1V1 added 0b10 threat records associated with you (minor) 19972 | -5/Hub_04(d) | Spotted Lightning 19972 | -5/Hub_04(d) | Spotted Lightning 19973 | -5/Hub_04(d) | Spotted Lightning 19978 | -5/Hub_04(d) | Core integrity fell below 50% 20039 | -5/Hub_04(d) | Destroyed Lightning 20051 | -5/Hub_04(d) | Destroyed Lightning 20052 | -5/Hub_04(d) | Lost 5 parts (2p1n1u1w) 20061 | -5/Hub_04(d) | Destroyed Lightning 20082 | -5/Hub_04(d) | Network Hub disabled 20090 | -5/Hub_04(d) | System corruption reached 30% 20105 | -5/Hub_04(d) | Destroyed 10 combat bots 20125 | -5/Hub_04(d) | X0-1V1 sent allied Executioner (x1) 20132 | -5/Hub_04(d) | First assault squad dispatched 20248 | -5/Hub_04(d) | Lost 3 parts (1n1u1w) 20299 | -5/Hub_04(d) | Discovered new exit (range 16) 20328 | -5/Hub_04(d) | Core integrity fell below 20% 20350 | -5/Hub_04(d) | Entered Factory 20350 | -4/Factory | Evolved 2 slots: Propulsion x1, Utility x1 20351 | -4/Factory | Identified exit to Research 20352 | -4/Factory | Loaded intel: 300 machine locations 20700 | -4/Factory | Build established: Scavenger-Tank 20755 | -4/Factory | Central database locked down 20763 | -4/Factory | Spotted B-86 Titan 20794 | -4/Factory | Destroyed B-86 Titan 20822 | -4/Factory | Lost 3 parts (2n1w) 20830 | -4/Factory | Destroyed 8 combat bots 21005 | -4/Factory | Scrapoids reinforcements arrived? 21050 | -4/Factory | Identified EMDS 21062 | -4/Factory | Lost 5 allies 21071 | -4/Factory | Build established: Hauler-Tank 21204 | -4/Factory | Intercept squad dispatched 21225 | -4/Factory | Spotted Tracker 21235 | -4/Factory | Destroyed Tracker 21253 | -4/Factory | Scrapoid reinforcements arrived 21272 | -4/Factory | X0-1V1 revealed exit location to -3/Research 21305 | -4/Factory | Spotted Combat Programmer 21311 | -4/Factory | Destroyed Combat Programmer 21318 | -4/Factory | Found Unknown Device 21318 | -4/Factory | Identified Scrap Suit 21337 | -4/Factory | Lost 5 allies 21363 | -4/Factory | Sucked down chute 21363 | -4/Factory | Entered Waste 21374 | -4/Waste | Spotted C-40 Crusher 21399 | -4/Waste | Destroyed C-40 Crusher 21409 | -4/Waste | Spotted C-40 Crusher 21416 | -4/Waste | Crushed by Compactor (0 parts destroyed, 1 dropped) 21419 | -4/Waste | Crushed by Compactor (1 part destroyed) 21422 | -4/Waste | Crushed by Compactor (0 parts destroyed, 1 dropped) 21427 | -4/Waste | Destroyed C-40 Crusher 21489 | -4/Waste | Destroyed C-40 Crusher 21537 | -4/Waste | Spotted C-40 Crusher 21544 | -4/Waste | Destroyed C-40 Crusher 21597 | -4/Waste | Spotted C-40 Crusher 21611 | -4/Waste | X0-1V1 turns hostiles against one another 21612 | -4/Waste | Crushed by Compactor (0 parts destroyed, 1 dropped) 21615 | -4/Waste | Crushed by Compactor (0 parts destroyed, 1 dropped) 21616 | -4/Waste | Destroyed C-40 Crusher 21633 | -4/Waste | Spotted C-40 Crusher 21638 | -4/Waste | Crushed by Compactor (1 part destroyed, 1 dropped) 21639 | -4/Waste | Destroyed C-40 Crusher 21763 | -4/Waste | Identified exit to Factory 21763 | -4/Waste | X0-1V1 revealed exit location to -4/Factory 22082 | -4/Waste | X0-1V1 activates XOMVISION 22142 | -4/Waste | Warlord forces began an assault 22231 | -4/Waste | Entered Factory 22231 | -4/Factory | Accompanied by 19 allies 22232 | -4/Factory | Loaded intel: 259 machine locations 22617 | -4/Factory | Lost 3 allies 22642 | -4/Factory | Discovered new exit (range 19) 22718 | -4/Factory | Lost 6 allies 22771 | -4/Factory | Entered Armory 22771 | -4/Armory | Accompanied by 5 allies 22772 | -4/Armory | Loaded intel: 82 machine locations 22866 | -4/Armory | Found Fusion Bomb Launcher 22868 | -4/Armory | Found Fusion Bomb Launcher 22873 | -4/Armory | X0-1V1 activates XOMVISION 22912 | -4/Armory | Found Fusion Bomb Launcher 22981 | -4/Armory | Lost 4 allies 23034 | -4/Armory | System corruption reached 10% 23047 | -4/Armory | Scrapoids reinforcements arrived? 23309 | -4/Armory | X0-1V1 destroyed Energy Cycler 23309 | -4/Armory | Energy Cycler disabled 23324 | -4/Armory | Attacked by bots powering up and referring to "LRC-V3" 23429 | -4/Armory | X0-1V1 sent allied Thug (x4) 23437 | -4/Armory | Spotted B-86 Titan 23439 | -4/Armory | Destroyed B-86 Titan 23500 | -4/Armory | Spotted Armor Guard 23500 | -4/Armory | Spotted Armor Guard 23533 | -4/Armory | Destroyed Armor Guard 23551 | -4/Armory | Rewired Armor Guard 23560 | -4/Armory | Found Superdense Plating 23705 | -4/Armory | Discovered new exit (range 4) 23756 | -4/Armory | Intercept squad dispatched 23774 | -4/Armory | Spotted Tracker 23804 | -4/Armory | Destroyed Tracker 23815 | -4/Armory | Spotted Combat Programmer 23845 | -4/Armory | Destroyed Combat Programmer 23851 | -4/Armory | Build established: Scavenger-Tank 23924 | -4/Armory | Entered Lab 23924 | -4/Lab | Accompanied by 1 ally 23924 | -4/Lab | Discovered exit to Research (range 9) 23954 | -4/Lab | Hidden lab's door opened automatically 23954 | -4/Lab | Sensor layout match revealed 23955 | -4/Lab | Gained access to the hidden lab's interior 24000 | -4/Lab | Disabled Active System Cloaker 24009 | -4/Lab | MAIN.C forces arrive to investigate 24010 | -4/Lab | Detected by scanners 24030 | -4/Lab | Confronted by A5 24152 | -4/Lab | Allies destroyed A5 24171 | -4/Lab | Found Prototype Protection 24171 | -4/Lab | Identified Med. Regenerative Plating 24192 | -4/Lab | Found Corrupted Exp. System Shield 24201 | -4/Lab | System corruption reached 30% 24291 | -4/Lab | Found Prototype Energy Gun 24291 | -4/Lab | Identified Tachyon Dispersion Ray 24301 | -4/Lab | Found Prototype Energy Cannon 24301 | -4/Lab | Identified Potential Cannon 24307 | -4/Lab | Found Prototype Protection 24307 | -4/Lab | Identified Exp. Powered Armor 24356 | -4/Lab | Found Prototype Special Weapon 24356 | -4/Lab | Identified Gui. Remote Datajack 24386 | -4/Lab | Decrypted terminal 24434 | -4/Lab | Found Prototype Hackware 24556 | -4/Lab | Found Alien Artifact 24556 | -4/Lab | Identified Integrated Dissipator 24556 | -4/Lab | Installed Integrated Dissipator, increased core heat dissipation (+20) 24571 | -4/Lab | Found Alien Artifact 24582 | -4/Lab | Attached Powered Cannon, gained temporary slot: Power 24588 | -4/Lab | Found Alien Artifact 24703 | -4/Lab | Build established: Scavenger-Gunner 24705 | -4/Lab | Decrypted terminal 24707 | -4/Lab | Decrypted terminal 24707 | -4/Lab | Found Alien Artifact 24707 | -4/Lab | Identified LC Capacitor 24800 | -4/Lab | Entered Research 24800 | -3/Research | Accompanied by 1 ally 24800 | -3/Research | Evolved 2 slots: Utility x2 24801 | -3/Research | Identified exit to Research 24802 | -3/Research | Loaded intel: 125 machine locations 25000 | -3/Research | Revision forces began assault on 0b10 25033 | -3/Research | Met up with Revision 17++ 25138 | -3/Research | Discovered new exit (range 15) 25346 | -3/Research | Fabricated Hcp. Storage Unit (x1) 25380 | -3/Research | X0-1V1 activates XOMVISION 25410 | -3/Research | Discovered exit to Research (range 4) 25459 | -3/Research | Discovered new exit (range 8) 25500 | -3/Research | Research terminal network offline 25503 | -3/Research | Identified Core Expander 25503 | -3/Research | Installed Core Expander, added new Propulsion slot 25507 | -3/Research | Central database locked down 25591 | -3/Research | Entered Quarantine 25592 | -3/Quarantine | Loaded intel: 76 machine locations 25640 | -3/Quarantine | X0-1V1 sent you to a vault 25678 | -3/Quarantine | X0-1V1 redirected Transport squads to designated parking area 25696 | -3/Quarantine | Cryocooling Duct disabled 25708 | -3/Quarantine | Master 8a assimilated hostile G-67 Veteran 25711 | -3/Quarantine | Ambient heat levels rising (+20) 25711 | -3/Quarantine | Non-combat units ordered to evacuate 25732 | -3/Quarantine | Scanned by Researcher 25767 | -3/Quarantine | Found Alien Impact Weapon 25887 | -3/Quarantine | Spotted Fortress 25893 | -3/Quarantine | Destroyed Fortress 25899 | -3/Quarantine | X0-1V1 revealed exit location to -2/Research 25906 | -3/Quarantine | Found Vortex Chain Reactor 25911 | -3/Quarantine | Found Prototype Device 25911 | -3/Quarantine | Identified Exp. Force Field 25984 | -3/Quarantine | Build established: Scavenger-Tank 25994 | -3/Quarantine | Intercept squad dispatched 26029 | -3/Quarantine | Spotted Tracker 26037 | -3/Quarantine | Destroyed Tracker 26057 | -3/Quarantine | Lost 4 allies 26071 | -3/Quarantine | X0-1V1 activates XOMVISION 26077 | -3/Quarantine | Discovered new exit (range 6) 26077 | -3/Quarantine | Discovered new exit (range 6) 26086 | -3/Quarantine | Entered Section 7 26087 | -3/Section 7 | Loaded intel: 120 machine locations 26372 | -3/Section 7 | Found Alien Artifact 26431 | -3/Section 7 | Watched by a mysterious "MATRIX" hacker 26439 | -3/Section 7 | Spotted S7 Guard 26446 | -3/Section 7 | Spotted B-86 Titan 26447 | -3/Section 7 | Identified Transdimensional Reconstructor 26447 | -3/Section 7 | Warped through subspace 26648 | -3/Section 7 | Spotted S7 Guard 26663 | -3/Section 7 | Destroyed S7 Guard 26669 | -3/Section 7 | Intercept squad dispatched 26673 | -3/Section 7 | Spotted Tracker 26684 | -3/Section 7 | Spotted Combat Programmer 26689 | -3/Section 7 | Destroyed Tracker 26695 | -3/Section 7 | Destroyed Combat Programmer 26703 | -3/Section 7 | Found Exp. Targeting Computer 26714 | -3/Section 7 | Found Alien Artifact 26714 | -3/Section 7 | Identified Navigation Efficiency Matrix 26714 | -3/Section 7 | Installed Navigation Efficiency Matrix, process failed with unexpected side effects 26754 | -3/Section 7 | Found Alien Artifact 26790 | -3/Section 7 | Spotted Executioner 26791 | -3/Section 7 | Spotted Executioner 26806 | -3/Section 7 | X0-1V1 sent allied Lightning (x1) 26808 | -3/Section 7 | Allies destroyed Executioner 26810 | -3/Section 7 | Allies destroyed Executioner 26873 | -3/Section 7 | Found Alien Energy Cannon 26874 | -3/Section 7 | Installed L-Cannon capacitor 26885 | -3/Section 7 | X0-1V1 added 0b10 threat records associated with you (minor) 26916 | -3/Section 7 | Found Transdimensional Reconstructor 26984 | -3/Section 7 | Spotted B-99 Colossus 27027 | -3/Section 7 | Destroyed B-99 Colossus 27077 | -3/Section 7 | X0-1V1 activates XOMVISION 27101 | -3/Section 7 | Found Alien Artifact 27101 | -3/Section 7 | Identified LRC Armor 27101 | -3/Section 7 | Installed LRC Armor, increased core integrity (+250) 27104 | -3/Section 7 | Found LRC Armor 27104 | -3/Section 7 | Installed LRC Armor, increased core integrity (+250) 27135 | -3/Section 7 | Found Alien Artifact 27137 | -3/Section 7 | Found Alien Artifact 27207 | -3/Section 7 | Found Integrated Dissipator 27207 | -3/Section 7 | Installed Integrated Dissipator, increased core heat dissipation (+20) 27290 | -3/Section 7 | System corruption reached 10% 27297 | -3/Section 7 | System corruption reached 30% 27360 | -3/Section 7 | Entered Research 27360 | -2/Research | Evolved 2 slots: Power x1, Weapon x1 27361 | -2/Research | Loaded intel: 108 machine locations 27374 | -2/Research | X0-1V1 added 0b10 threat records associated with you (considerable) 27421 | -2/Research | Identified exit to Testing 27421 | -2/Research | X0-1V1 revealed exit location to -2/Testing 27422 | -2/Research | Spotted B-90 Cyclops 27452 | -2/Research | Spotted B-90 Cyclops 27459 | -2/Research | Fired L-Cannon 27459 | -2/Research | Destroyed B-90 Cyclops 27469 | -2/Research | Fired L-Cannon 27553 | -2/Research | Identified Integrity Redistributor (x3) 27553 | -2/Research | Identified Spacefold Activator 27553 | -2/Research | Identified Deep Network Scanner 27610 | -2/Research | First assault squad dispatched 27631 | -2/Research | Used Integrity Redistributor, redistributed integrity from core (-211) 27760 | -2/Research | Found Fusion Bomb Launcher+ 27790 | -2/Research | X0-1V1 sent you to a vault 27809 | -2/Research | X0-1V1 activates XOMVISION 27907 | -2/Research | Entered Testing 27908 | -2/Testing | Loaded intel: 67 machine locations 27932 | -2/Testing | Lost 3 allies 27951 | -2/Testing | Spotted PH-34HQ9V0YVG 28083 | -2/Testing | Protovariant out of control (PD-M57JBU58IH) 28083 | -2/Testing | Unleashed a protovariant (PD-M57JBU58IH) 28207 | -2/Testing | X0-1V1 sent you to a vault 28378 | -2/Testing | Spotted Striker 28390 | -2/Testing | Found Prototype Leg 28390 | -2/Testing | Identified Myomer Exoskeleton 28435 | -2/Testing | Found Prototype Energy Cannon 28463 | -2/Testing | Lost 3 allies 28519 | -2/Testing | Identified exit to Access 28652 | -2/Testing | Found Prototype Energy Cannon 28652 | -2/Testing | Identified Null Cannon 28657 | -2/Testing | First assault squad dispatched 28738 | -2/Testing | Entered Access 28738 | -1/Access | Evolved 2 slots: Utility x1, Weapon x1 28739 | -1/Access | Loaded intel: 120 machine locations 28782 | -1/Access | X0-1V1 added 0b10 threat records associated with you (minor) 29028 | -1/Access | Spotted B-99 Colossus 29033 | -1/Access | Discovered new exit (range 8) 29039 | -1/Access | Identified exit to Command 29040 | -1/Access | Entered Command 29041 | -1/Command | Loaded intel: 60 machine locations 29042 | -1/Command | Identified Imp. Potential Cannon 29102 | -1/Command | Spotted B-99 Colossus 29102 | -1/Command | Spotted B-99 Colossus 29121 | -1/Command | Fired L-Cannon 29134 | -1/Command | Fired L-Cannon 29134 | -1/Command | 0b10 Conduit disabled 29137 | -1/Command | MAIN.C activated Command garrisons 29172 | -1/Command | Fired L-Cannon 29182 | -1/Command | X0-1V1 activates XOMVISION 29209 | -1/Command | Found Exp. Powered Armor 29221 | -1/Command | Found Thermal Barrier 29249 | -1/Command | Identified exit to Surface 29249 | -1/Command | X0-1V1 revealed exit location to -0/Surface 29296 | -1/Command | Spotted Combat Programmer 29304 | -1/Command | Destroyed Combat Programmer 29367 | -1/Command | X0-1V1 sent you into danger 29386 | -1/Command | Destroyed B-99 Colossus 29513 | -1/Command | Discovered exit to Surface (range 143) 29513 | -1/Command | Discovered exit to Surface (range 56) 29513 | -1/Command | Extracted map data and part IDs from MAIN.C's data core 29666 | -1/Command | Centrium Leg reconfigured into Item Mimic 29711 | -1/Command | X0-1V1 sent you to a vault 30018 | -1/Command | Found AEGIS Remote Shield 30023 | -1/Command | Found Hellfire Missile Launcher 30029 | -1/Command | Found Hvy. Regenerative Plating 30049 | -1/Command | Found Zero-point Reactor 30183 | -1/Command | Found SHELL Armor 30220 | -1/Command | Found Exp. System Purifier 30361 | -1/Command | Found Exp. Phase Shifter 30402 | -1/Command | Warped through subspace to slip node 30402 | -1/Command | Discovered new exit (range 5) 30403 | -1/Command | Found Thermal Barrier 30408 | -1/Command | Entered Access_0 30409 | -1/Access_0 | Loaded intel: 59 machine locations 30409 | -1/Access_0 | Met Architect 30411 | -1/Access_0 | Hacked A8 with code downloaded from Data Conduit 30414 | -1/Access_0 | Destroyed A8 30435 | -1/Access_0 | Architect warped through subspace 30487 | -1/Access_0 | Architect warped through subspace 30553 | -1/Access_0 | Architect warped through subspace 30588 | -1/Access_0 | Fired L-Cannon 30588 | -1/Access_0 | Subspace Access Node disabled 30588 | -1/Access_0 | Subspace Access Node disabled 30600 | -1/Access_0 | Fired L-Cannon 30608 | -1/Access_0 | Spotted Enhanced Programmer 30612 | -1/Access_0 | Fired L-Cannon 30615 | -1/Access_0 | X0-1V1 sent allied Wasp (x4) 30622 | -1/Access_0 | Fired L-Cannon 30622 | -1/Access_0 | Subspace Access Node disabled 30632 | -1/Access_0 | Fired L-Cannon 30632 | -1/Access_0 | Architect warped through subspace 30642 | -1/Access_0 | Fired L-Cannon 30642 | -1/Access_0 | Subspace Access Node disabled 30642 | -1/Access_0 | Singularity Gate disabled 30642 | -1/Access_0 | Singularity Gate disabled 30652 | -1/Access_0 | Fired L-Cannon 30652 | -1/Access_0 | Allies destroyed Enhanced Programmer 30662 | -1/Access_0 | Fired L-Cannon 30692 | -1/Access_0 | Lost 4 allies 30725 | -1/Access_0 | Found Zero-point Reactor 30728 | -1/Access_0 | Extracted unknown sensor trigger ID from Architect's data core 30732 | -1/Access_0 | X0-1V1 revealed exit location to -0/Surface 30749 | -1/Access_0 | Found Prototype Hackware 30749 | -1/Access_0 | Identified Architect God Chip A 30753 | -1/Access_0 | Found Alien Energy Gun 30753 | -1/Access_0 | Identified Modified Sigix Sheargun 30758 | -1/Access_0 | Found Prototype Hackware 30758 | -1/Access_0 | Identified Architect God Chip D 30785 | -1/Access_0 | Used Integrity Redistributor, redistributed integrity from core (-213) 30792 | -1/Access_0 | Found Hpw. Transdimensional Reconstructor 30794 | -1/Access_0 | Found Zero-point Reactor 30795 | -1/Access_0 | Core integrity restored by X0-1V1 (+348) 30801 | -1/Access_0 | Found Exp. Focal Shield 30834 | -1/Access_0 | Spotted Enhanced Programmer 30878 | -1/Access_0 | Spotted Enhanced Programmer 30890 | -1/Access_0 | A6 warped into view 30898 | -1/Access_0 | Hacked A6 with code downloaded from Data Conduit 30901 | -1/Access_0 | Destroyed A6 30913 | -1/Access_0 | Destroyed Enhanced Programmer 30916 | -1/Access_0 | Spotted Enhanced Programmer 30957 | -1/Access_0 | Spotted Enhanced Programmer 30976 | -1/Access_0 | System corruption reached 10% 30995 | -1/Access_0 | Destroyed Enhanced Programmer 31004 | -1/Access_0 | Spotted Enhanced Programmer 31016 | -1/Access_0 | X0-1V1 sent allied H-77 Assassin (x3) 31039 | -1/Access_0 | Fired L-Cannon 31040 | -1/Access_0 | Allies destroyed Enhanced Programmer 31049 | -1/Access_0 | Fired L-Cannon 31068 | -1/Access_0 | Fired L-Cannon 31079 | -1/Access_0 | Fired L-Cannon 31081 | -1/Access_0 | Spotted Enhanced Programmer 31089 | -1/Access_0 | Fired L-Cannon 31209 | -1/Access_0 | Found Prototype Device 31209 | -1/Access_0 | Identified Desublimator 31340 | -1/Access_0 | X0-1V1 sent allied Quarantine Guard (x3) 31416 | -1/Access_0 | Found Ragnarok Missile Launcher 31468 | -1/Access_0 | Destroyed Enhanced Programmer 31483 | -1/Access_0 | Hacked A2 with code downloaded from Data Conduit 31486 | -1/Access_0 | Destroyed A2 31540 | -1/Access_0 | Found Sigix Corpse 31579 | -1/Access_0 | Spotted Enhanced Programmer 31593 | -1/Access_0 | Destroyed Enhanced Programmer 31602 | -1/Access_0 | A4 warped into view 31617 | -1/Access_0 | Hacked A4 with code downloaded from Data Conduit 31620 | -1/Access_0 | Destroyed A4 31688 | -1/Access_0 | X0-1V1 mutated your Utility slot to Weapon slot 31736 | -1/Access_0 | X0-1V1 vaporized surrounding terrain (radius 19) 31838 | -1/Access_0 | Found Integrated Dissipator 31838 | -1/Access_0 | Installed Integrated Dissipator, increased core heat dissipation (+20) 31972 | -1/Access_0 | Spotted Enhanced Programmer 31979 | -1/Access_0 | Destroyed Enhanced Programmer 31996 | -1/Access_0 | Build established: Scavenger-Executioner 32200 | -1/Access_0 | Found Zero-point Reactor 32416 | -1/Access_0 | A3 warped into view 32418 | -1/Access_0 | Hacked A3 with code downloaded from Data Conduit 32421 | -1/Access_0 | Destroyed A3 32512 | -1/Access_0 | Core integrity restored by X0-1V1 (+430) 32537 | -1/Access_0 | X0-1V1 vaporized surrounding terrain (radius 19) 32946 | -1/Access_0 | Found Integrity Redistributor 32946 | -1/Access_0 | Used Integrity Redistributor, redistributed integrity from core (-168) 33082 | -1/Access_0 | X0-1V1 activates XOMVISION 33101 | -1/Access_0 | Found Integrated Reactor 33101 | -1/Access_0 | Installed Integrated Reactor, increased core energy generation (+10) 33110 | -1/Access_0 | Warped through subspace to slip node 33119 | *** | Establishing 0b11! Last Messages --------------- 32945_ Dropped Exp. Power Amplifier. 32946_ Acquired Integrity Redistributor. 32946_ Integrity redistributed from core (-168). 32948_ Navigation matrix triggers involuntary quantum shift. 32961_ Acquired Exp. Power Amplifier. 32975_ Navigation matrix triggers involuntary quantum shift. 33033_ Acquired 28 matter. 33048_ Navigation matrix triggers involuntary quantum shift. 33082_ Suggestive images of robots vie for attention in your data streams. 33082_ X0-1V1: "Enjoy your XOMVISION!" 33093_ Workstation disabled. 33101_ Dropped Exp. Power Amplifier. 33101_ Acquired Integrated Reactor. 33101_ Integrated Reactor installed, core energy generation increased (+10). 33104_ Acquired Exp. Power Amplifier. 33109_ Navigation matrix triggers involuntary quantum shift. 33109_ Dropped Exp. Power Amplifier. 33110_ Warped through subspace, drawn to slip node. 33111_ Acquired Exp. Power Amplifier. Map ----- +----------------------------------------------------+ | | | | | | | | | | | | | | | | | | | | | | | | | | | | | | | | | ?????????????????????????????????????????????????? | | ?????????????????????????????????????????????????? | | ?????????????????????????????????????????????????? | | ?????????????????????????????????????????????????? | | ?????????????????????????????????????????????????? | | ?????????????????????????????????????????????????? | | ????????????????????????###??????????????????????? | | ???????????????????????## ##?????????????????????? | | ???????????????????????# #?????????????????????? | | ???????????????????????# @ #?????????????????????? | | ??????????????????????## #?????????????????????? | | ??????????????????????# #?????????????????????? | | ??????????????????????# ##?????????????????????? | | ??????????????????????## #?????????????????????? | | ??????????????????????# #?????????????????????? | | ??????????????????????# ##?????????????????????? | | ??????????????????????# < #?????????????????????? | | ??????????????????????# ##?????????????????????? | | ??????????????????????## #??????????????????????? | | ???????????????????????####??????????????????????? | | ?????????????????????????????????????????????????? | | ?????????????????????????????????????????????????? | | ?????????????????????????????????????????????????? | | ?????????????????????????????????????????????????? | | ?????????????????????????????????????????????????? | | ?????????????????????????????????????????????????? | | ?????????????????????????????????????????????????? | | ?????????????????????????????????????????????????? | | ?????????????????????????????????????????????????? | | ?????????????????????????????????????????????????? | | ?????????????????????????????????????????????????? | | ?????????????????????????????????????????????????? | | ?????????????????????????????????????????????????? | | ?????????????????????????????????????????????????? | +----------------------------------------------------+ Best States ------------- Heat Dissipation 298 Coolant Potential 80 Energy Generation 111 Energy Capacity 2900 Matter Stores 1300 Matter Capacity 1300 Sight Range 22 Robot Scan Range 19 Terrain Scan Range 16 Terrain Scan Density 210 ECM Strength 3 Jamming Range 12 Cloak Strength 4 Power Amplification 40 Base Temperature (-) 100 EM Shielding 2 Armor Coverage 1600 Resistance: KI 64 Resistance: TH 50 Resistance: EX 25 Resistance: EM 96 Weapon Shielding 15 Weapon Cycling 20 Phase Shifting 20 Evasion (%) 70 Targeting Accuracy 20 Launcher Accuracy 30 Target Analysis 5 Recoil Reduction 2 Energy Filtering 30 Kinecelleration 40 Force Boost 20 Salvage Targeting 2 Offensive Hacking 100 Defensive Hacking 100 Item Schematics ----------------- Hcp. Storage Unit | -10/Materials | Hacked Flexi-carbon Leg | -8/Recycling | Hacked Combat Drone Bay | -6/Data Miner | Free Lgt. Regenerative Plating | -6/Data Miner | Free Cld. Gravmag System | -6/Data Miner | Free Prc. Matter Filter | -6/Data Miner | Free Imp. KE Penetrator | -6/Data Miner | Free Field Propulsion Array | -6/Data Miner | Free Adv. Coolant Injector | -6/Data Miner | Free Hardcell Cannon | -6/Data Miner | Free Adv. Force Field | -6/Data Miner | Free Imp. Coolant Injector | -5/Factory | Hacked Imp. Diametric Drive | -3/Quarantine | Archive Enh. Force Rifle | -3/Quarantine | Archive Exp. Focal Shield | -3/Quarantine | Archive Adv. Energy Well | -3/Section 7 | Archive Exp. Shield Generator | -3/Section 7 | Archive Tiamat Missile Launcher | -3/Section 7 | Archive Cld. Nuclear Pulse Thruster | -3/Section 7 | Archive Adv. Variable Charge Gun | -3/Section 7 | Archive Com. Mass Driver | -3/Section 7 | Archive Robot Schematics ------------------ G-50 Soldier | -6/Data Miner | Free B-48 Gladiator | -6/Data Miner | Free Y-54 Guardian | -6/Data Miner | Free L-41 Fighter | -6/Data Miner | Free L-61 Swordsman | -6/Data Miner | Free Y-64 Sentinel | -6/Data Miner | Free C-55 Analyst | -3/Quarantine | Archive Fabricated ------------ Hcp. Storage Unit | x1 | -3/Research Repaired ---------- Nothing Studied --------- Myomer Leg | -4/Factory | Hacked Flexi-carbon Leg | -3/Research | Hacked Fusion Bomb Launcher | -3/Research | Hacked Hyb. Antimatter Reactor | -3/Research | Hacked Com. HERF Cannon | -3/Research | Hacked Imp. Thunder Leg | -3/Research | Hacked Adv. VSS Leg | -3/Research | Hacked Nova Cannon | -2/Testing | Hacked Hvy. Shield Leg | -2/Testing | Hacked Alien Tech Used ----------------- Integrated Dissipator LC Capacitor Core Expander Transdimensional Reconstructor Navigation Efficiency Matrix LRC Armor L-Cannon Integrity Redistributor Modified Sigix Sheargun Integrated Reactor High-powered Transdimensional Reconstructor Achievements -------------- I Am Starship Now Challenges ------------ None Game ------ Seed FireFissionSpear Manual? 0 Play Time 06:45:26 Cumulative 679.4 hours Start 2026.07.15 @ 00:54:06 End 2026.07.23 @ 17:16:07 Sessions 19 Manual Loads 0 Difficulty Rogue Special Mode None Game No. 375 Rogue 350 Adventurer 7 Explorer 18 Win Type 1 Total 65 Types 41/3/9/2/2/1/2/3/0/2 Lore% 96 Gallery% 88 Achievement% 74 Wizard Run 0 Options --------- Layout 0 ASCII 0 Keyboard 0 Movement Numpad Keybinds 0 Fullscreen 1 Font 18/SmallcapsGlow Map View 76x50 Zoom Use 0% Tactical HUD 1 Map Filters NONE Filters NONE Steam 1 RUN: b64b8ed4-bf14-4edf-b8f0-cad964d052d3